Workbook

Sheet Skema 1
A1: Region Syddanmark, somatiske sygehuse.
B2: Skema 1: Udgifter og indtægter på sygehusene/enhederne, eksklusiv omkostningssted 0001, Fælleskonto. (1.000 kr.)
A5: Sygehus | C5: 2023 | D5: 2022 | E5: 2021 | F5: 2020 | G5: Δ2022-2023 | H5: % afvigelse | I5: Begrundelse
A6: Odense Universitetshospital/Svendborg
A7: Odense Universitetshospital/Svendborg | B7: Hovedart 1: Lønninger | C7: 5603645.033 | D7: 5500868.443 | E7: 5337144.79 | F7: 5056449 | G7: =IF(ISERROR(C7- D7)=TRUE,"",C7 - D7) -> 102776.59 | H7: =IF(ISERROR((((C7- D7)/D7)*100)=TRUE),"",IF((((C7- D7)/D7)*100)<-7,FIXED(((C7- D7)/D7)*100, 1,TRUE) &"%" & "▼",IF((((C7- D7)/D7)*100)>7,FIXED(((C7- D7)/D7)*100, 1,TRUE) &"%" &"▲",FIXED(((C7- D7)/D7)*100, 1,TRUE)&"%"))) -> 1,9%
A8: Odense Universitetshospital/Svendborg | B8: Hovedart 2: Varekøb | C8: 2353019.867 | D8: 2373700.63 | E8: 2327554.674 | F8: 2396643 | G8: -20680.763 | H8: -0,9%
A9: Odense Universitetshospital/Svendborg | B9: Hovedart 4: Tjenesteydelser m.v. | C9: 664643.45 | D9: 516458.98 | E9: 285598.51 | F9: 412204 | G9: 148184.47 | H9: 28,7%▲ | I9: Stort fald i Covid-19 kompensation fra regionshuset, der i tidligere år har været krediteret art 4-0. samt stigning i ekstern forskning, der nulstilles på art 4.0
A10: Odense Universitetshospital/Svendborg | B10: Hovedart 5: Tilskud og overførsler | D10: 0 | F10: 0 | G10: 0
A11: Odense Universitetshospital/Svendborg | B11: Hovedart 6: Finansudgifter | D11: 0 | F11: 0 | G11: 0
A12: Odense Universitetshospital/Svendborg | B12: Hovedart 7: Indtægter | C12: -527838.59 | D12: -481197.577 | E12: -478386.905 | F12: -476581 | G12: -46641.013 | H12: 9,7%▲ | I12: Øget indtægter på blodplasma og forskning
A13: Odense Universitetshospital/Svendborg | B13: Hovedart 8: Finansindtægter | D13: -548.373 | E13: -473.501 | F13: -1805 | G13: 548.373 | H13: -100,0%▼ | I13: Ny kontering løntilskud fra kommunerne. Er ændret fra art 8.5 til art 7.7
A14: Odense Universitetshospital/Svendborg | B14: Hovedart 9: Interne udgifter og indtægter | G14: 0
A15: Odense Universitetshospital/Svendborg | B15: I alt | C15: =SUMIFS((C7:C14),(A7:A14),A15) -> 8093469.76 | D15: =SUMIFS((D7:D14),(A7:A14),A15) -> 7909282.103 | E15: =SUMIFS((E7:E14),(A7:A14),A15) -> 7471437.568 | F15: =SUMIFS((F7:F14),(A7:A14),A15) -> 7386910 | G15: 184187.657 | H15: 2,3%
A16: Sygehus Sønderjylland | G16: 0
A17: Sygehus Sønderjylland | B17: Hovedart 1: Lønninger | C17: 1536635 | D17: 1585195 | E17: 1558182 | F17: 1458321 | G17: -48560 | H17: -3,1%
A18: Sygehus Sønderjylland | B18: Hovedart 2: Varekøb | C18: 477110 | D18: 495429 | E18: 471865 | F18: 489449 | G18: -18319 | H18: -3,7%
A19: Sygehus Sønderjylland | B19: Hovedart 4: Tjenesteydelser m.v. | C19: 306719 | D19: 139174 | E19: 83786 | F19: 155064 | G19: 167545 | H19: 120,4%▲ | I19: Stort fald i Covid-19 kompensation fra regionshuset, der i tidligere år har været krediteret art 4-0
A20: Sygehus Sønderjylland | B20: Hovedart 5: Tilskud og overførsler | C20: 0 | D20: 0 | G20: 0
A21: Sygehus Sønderjylland | B21: Hovedart 6: Finansudgifter | C21: 0 | G21: 0
A22: Sygehus Sønderjylland | B22: Hovedart 7: Indtægter | C22: -49071 | D22: -49146 | E22: -33168 | F22: -34419 | G22: 75 | H22: -0,2%
A23: Sygehus Sønderjylland | B23: Hovedart 8: Finansindtægter | G23: 0
A24: Sygehus Sønderjylland | B24: Hovedart 9: Interne udgifter og indtægter | G24: 0
A25: Sygehus Sønderjylland | B25: I alt | C25: =SUMIFS((C7:C24),(A7:A24),A25) -> 2271393 | D25: =SUMIFS((D7:D24),(A7:A24),A25) -> 2170652 | E25: =SUMIFS((E7:E24),(A7:A24),A25) -> 2080665 | F25: =SUMIFS((F7:F24),(A7:A24),A25) -> 2068415 | G25: 100741 | H25: 4,6%
A26: Esbjerg og Grindsted Sygehus | G26: 0
A27: Esbjerg og Grindsted Sygehus | B27: Hovedart 1: Lønninger | C27: 1547927 | D27: 1518098 | E27: 1461156 | F27: 1370162 | G27: 29829 | H27: 2,0%
A28: Esbjerg og Grindsted Sygehus | B28: Hovedart 2: Varekøb | C28: 475880 | D28: 492381 | E28: 474506 | F28: 491682 | G28: -16501 | H28: -3,4%
A29: Esbjerg og Grindsted Sygehus | B29: Hovedart 4: Tjenesteydelser m.v. | C29: 190385 | D29: 129285 | E29: 75665 | F29: 149330 | G29: 61100 | H29: 47,3%▲ | I29: Lavere Covid refusion - tilbage til "normalniveau" fra før 2020
A30: Esbjerg og Grindsted Sygehus | B30: Hovedart 5: Tilskud og overførsler | C30: 0 | D30: 1 | G30: -1 | H30: -100,0%▼
A31: Esbjerg og Grindsted Sygehus | B31: Hovedart 6: Finansudgifter | G31: 0
A32: Esbjerg og Grindsted Sygehus | B32: Hovedart 7: Indtægter | C32: -46661 | D32: -39237 | E32: -31971 | F32: -27819 | G32: -7424 | H32: 18,9%▲ | I32: Flere indtægter fra SDU og projekter
A33: Esbjerg og Grindsted Sygehus | B33: Hovedart 8: Finansindtægter | D33: -7 | E33: -767 | F33: -331 | G33: 7 | H33: -100,0%▼
A34: Esbjerg og Grindsted Sygehus | B34: Hovedart 9: Interne udgifter og indtægter | G34: 0
A35: Esbjerg og Grindsted Sygehus | B35: I alt | C35: =SUMIFS((C7:C34),(A7:A34),A35) -> 2167531 | D35: =SUMIFS((D7:D34),(A7:A34),A35) -> 2100521 | E35: =SUMIFS((E7:E34),(A7:A34),A35) -> 1978589 | F35: =SUMIFS((F7:F34),(A7:A34),A35) -> 1983024 | G35: 67010 | H35: 3,2%
A36: Kolding og Middelfart Sygehuse | G36: 0
A37: Kolding og Middelfart Sygehuse | B37: Hovedart 1: Lønninger | C37: 1297145.12 | D37: 1360169.974 | E37: 1285871.367 | F37: 1191209.96 | G37: -63024.85442 | H37: -4,6%
A38: Kolding og Middelfart Sygehuse | B38: Hovedart 2: Varekøb | C38: 348154.349 | D38: 357842.7523 | E38: 322523.3619 | F38: 330167.7289 | G38: -9688.403263 | H38: -2,7%
A39: Kolding og Middelfart Sygehuse | B39: Hovedart 4: Tjenesteydelser m.v. | C39: 137142.214 | D39: 50992.63196 | E39: 33646.24827 | F39: 57217.69507 | G39: =IF(ISERROR(C39- D39)=TRUE,"",C39 - D39) -> 86149.58204 | H39: =IF(ISERROR((((C39- D39)/D39)*100)=TRUE),"",IF((((C39- D39)/D39)*100)<-7,FIXED(((C39- D39)/D39)*100, 1,TRUE) &"%" & "▼",IF((((C39- D39)/D39)*100)>7,FIXED(((C39- D39)/D39)*100, 1,TRUE) &"%" &"▲",FIXED(((C39- D39)/D39)*100, 1,TRUE)&"%"))) -> 168,9%▲
A40: Kolding og Middelfart Sygehuse | B40: Hovedart 5: Tilskud og overførsler | C40: 0 | G40: 0
A41: Kolding og Middelfart Sygehuse | B41: Hovedart 6: Finansudgifter | C41: 0 | G41: 0
A42: Kolding og Middelfart Sygehuse | B42: Hovedart 7: Indtægter | C42: -21967.265 | D42: -23691.37709 | E42: -28995.40549 | F42: -20048.04214 | G42: 1724.112086 | H42: -7,3%▼
A43: Kolding og Middelfart Sygehuse | B43: Hovedart 8: Finansindtægter | D43: -33 | E43: -66.06385556 | F43: -257.7896589 | G43: 33 | H43: -100,0%▼
A44: Kolding og Middelfart Sygehuse | B44: Hovedart 9: Interne udgifter og indtægter | G44: 0
A45: Kolding og Middelfart Sygehuse | B45: I alt | C45: =SUMIFS((C7:C44),(A7:A44),A45) -> 1760474.418 | D45: =SUMIFS((D7:D44),(A7:A44),A45) -> 1745280.982 | E45: =SUMIFS((E7:E44),(A7:A44),A45) -> 1612979.507 | F45: =SUMIFS((F7:F44),(A7:A44),A45) -> 1558289.552 | G45: 15193.43644 | H45: 0,9%
A46: Vejle Sygehus | G46: 0
A47: Vejle Sygehus | B47: Hovedart 1: Lønninger | C47: 1352070.93 | D47: 1280021.96 | E47: 1220217.567 | F47: 1172418.152 | G47: 72048.96985 | H47: 5,6%
A48: Vejle Sygehus | B48: Hovedart 2: Varekøb | C48: 626841.876 | D48: 648488.6789 | E48: 635103.273 | F48: 668983.7432 | G48: -21646.80287 | H48: -3,3%
A49: Vejle Sygehus | B49: Hovedart 4: Tjenesteydelser m.v. | C49: 170714.098 | D49: 161144.0697 | E49: 150756.6967 | F49: 179244.5818 | G49: 9570.028286 | H49: 5,9%
A50: Vejle Sygehus | B50: Hovedart 5: Tilskud og overførsler | C50: -81452.481 | G50: -81452.481
A51: Vejle Sygehus | B51: Hovedart 6: Finansudgifter | G51: 0
A52: Vejle Sygehus | B52: Hovedart 7: Indtægter | D52: -89524.00554 | E52: -97388.81882 | F52: -80491.85828 | G52: 89524.00554 | H52: -100,0%▼
A53: Vejle Sygehus | B53: Hovedart 8: Finansindtægter | D53: -97.95184292 | E53: -195.4585344 | F53: -289.3130711 | G53: 97.95184292 | H53: -100,0%▼
A54: Vejle Sygehus | B54: Hovedart 9: Interne udgifter og indtægter | G54: 0
A55: Vejle Sygehus | B55: I alt | C55: =SUMIFS((C7:C54),(A7:A54),A55) -> 2068174.423 | D55: =SUMIFS((D7:D54),(A7:A54),A55) -> 2000032.751 | E55: =SUMIFS((E7:E54),(A7:A54),A55) -> 1908493.259 | F55: =SUMIFS((F7:F54),(A7:A54),A55) -> 1939865.306 | G55: 68141.67164 | H55: 3,4%
A56: Friklinikken i Grindsted | G56: 0
A57: Friklinikken i Grindsted | B57: Hovedart 1: Lønninger | C57: 76150 | D57: 71374 | E57: 70956 | F57: 69125 | G57: 4776 | H57: 6,7%
A58: Friklinikken i Grindsted | B58: Hovedart 2: Varekøb | C58: 5312 | D58: 5256 | E58: 4577 | F58: 3922 | G58: 56 | H58: 1,1%
A59: Friklinikken i Grindsted | B59: Hovedart 4: Tjenesteydelser m.v. | C59: 7834 | D59: 8320 | E59: 5291 | F59: 5453 | G59: -486 | H59: -5,8%
A60: Friklinikken i Grindsted | B60: Hovedart 5: Tilskud og overførsler | G60: 0
A61: Friklinikken i Grindsted | B61: Hovedart 6: Finansudgifter | G61: 0
A62: Friklinikken i Grindsted | B62: Hovedart 7: Indtægter | C62: -22397 | D62: -21035 | E62: -20462 | F62: -21027 | G62: -1362 | H62: 6,5%
A63: Friklinikken i Grindsted | B63: Hovedart 8: Finansindtægter | G63: 0
A64: Friklinikken i Grindsted | B64: Hovedart 9: Interne udgifter og indtægter | G64: 0
A65: Friklinikken i Grindsted | B65: I alt | C65: =SUMIFS((C7:C64),(A7:A64),A65) -> 66899 | D65: =SUMIFS((D7:D64),(A7:A64),A65) -> 63915 | E65: =SUMIFS((E7:E64),(A7:A64),A65) -> 60362 | F65: =SUMIFS((F7:F64),(A7:A64),A65) -> 57473 | G65: 2984 | H65: 4,7%
A66: Øvrige i Region Syddanmark | G66: 0
A67: Øvrige i Region Syddanmark | B67: Hovedart 1: Lønninger | G67: 0
A68: Øvrige i Region Syddanmark | B68: Hovedart 2: Varekøb | G68: 0
A69: Øvrige i Region Syddanmark | B69: Hovedart 4: Tjenesteydelser m.v. | G69: 0
A70: Øvrige i Region Syddanmark | B70: Hovedart 5: Tilskud og overførsler | G70: 0
A71: Øvrige i Region Syddanmark | B71: Hovedart 6: Finansudgifter | G71: =IF(ISERROR(C71- D71)=TRUE,"",C71 - D71) -> 0 | H71: =IF(ISERROR((((C71- D71)/D71)*100)=TRUE),"",IF((((C71- D71)/D71)*100)<-7,FIXED(((C71- D71)/D71)*100, 1,TRUE) &"%" & "▼",IF((((C71- D71)/D71)*100)>7,FIXED(((C71- D71)/D71)*100, 1,TRUE) &"%" &"▲",FIXED(((C71- D71)/D71)*100, 1,TRUE)&"%"))) -> 
A72: Øvrige i Region Syddanmark | B72: Hovedart 7: Indtægter | G72: 0
A73: Øvrige i Region Syddanmark | B73: Hovedart 8: Finansindtægter | G73: 0
A74: Øvrige i Region Syddanmark | B74: Hovedart 9: Interne udgifter og indtægter | G74: 0
A75: Øvrige i Region Syddanmark | B75: I alt | C75: =SUMIFS((C7:C74),(A7:A74),A75) -> 0 | D75: =SUMIFS((D7:D74),(A7:A74),A75) -> 0 | E75: =SUMIFS((E7:E74),(A7:A74),A75) -> 0 | F75: =SUMIFS((F7:F74),(A7:A74),A75) -> 0 | G75: 0
A76: Ikke fordelte udgifter og indtægter | G76: 0
A77: Ikke fordelte udgifter og indtægter | B77: Hovedart 1: Lønninger | G77: 0
A78: Ikke fordelte udgifter og indtægter | B78: Hovedart 2: Varekøb | G78: 0
A79: Ikke fordelte udgifter og indtægter | B79: Hovedart 4: Tjenesteydelser m.v. | G79: 0
A80: Ikke fordelte udgifter og indtægter | B80: Hovedart 5: Tilskud og overførsler | G80: 0
A81: Ikke fordelte udgifter og indtægter | B81: Hovedart 6: Finansudgifter | G81: 0
A82: Ikke fordelte udgifter og indtægter | B82: Hovedart 7: Indtægter | G82: 0
A83: Ikke fordelte udgifter og indtægter | B83: Hovedart 8: Finansindtægter | G83: 0
A84: Ikke fordelte udgifter og indtægter | B84: Hovedart 9: Interne udgifter og indtægter | G84: 0
A85: Ikke fordelte udgifter og indtægter | B85: I alt | C85: =SUMIFS((C7:C84),(A7:A84),A85) -> 0 | D85: =SUMIFS((D7:D84),(A7:A84),A85) -> 0 | E85: =SUMIFS((E7:E84),(A7:A84),A85) -> 0 | F85: =SUMIFS((F7:F84),(A7:A84),A85) -> 0 | G85: 0

Sheet Skema 2
A1: Region Syddanmark, somatiske sygehuse.
B2: Skema 2: Fællesudgifter og -indtægter vedrørende sygehusene. (1.000 kr.)
A5: Sygehus | C5: 2023 | D5: 2022 | E5: 2021 | F5: 2020 | G5: Δ2022-2023 | H5: % afvigelse | I5: Begrundelse
A6: Odense Universitetshospital/Svendborg
A7: Odense Universitetshospital/Svendborg | B7: Hovedart 1: Lønninger | C7: 33261 | D7: 72456 | E7: 56510 | F7: 75655 | G7: =IF(ISERROR(C7- D7)=TRUE,"",C7 - D7) -> -39195 | H7: =IF(ISERROR((((C7- D7)/D7)*100)=TRUE),"",IF((((C7- D7)/D7)*100)<-7,FIXED(((C7- D7)/D7)*100, 1,TRUE) &"%" & "▼",IF((((C7- D7)/D7)*100)>7,FIXED(((C7- D7)/D7)*100, 1,TRUE) &"%" &"▲",FIXED(((C7- D7)/D7)*100, 1,TRUE)&"%"))) -> -54,1%▼
A8: Odense Universitetshospital/Svendborg | B8: Hovedart 2: Varekøb | C8: 12878 | D8: -3149 | E8: 10705 | F8: 20755 | G8: 16027 | H8: -509,0%▼
A9: Odense Universitetshospital/Svendborg | B9: Hovedart 4: Tjenesteydelser m.v. | C9: 208093 | D9: 174479 | E9: 178749 | F9: 151701 | G9: 33614 | H9: 19,3%▲
A10: Odense Universitetshospital/Svendborg | B10: Hovedart 5: Tilskud og overførsler | D10: 0 | E10: 11 | F10: 0 | G10: 0
A11: Odense Universitetshospital/Svendborg | B11: Hovedart 6: Finansudgifter | F11: 0 | G11: 0
A12: Odense Universitetshospital/Svendborg | B12: Hovedart 7: Indtægter | C12: -71658 | D12: -45567 | E12: -17990 | F12: -30522 | G12: -26091 | H12: 57,3%▲
A13: Odense Universitetshospital/Svendborg | B13: Hovedart 8: Finansindtægter | C13: -230 | D13: -299 | G13: 69 | H13: -23,1%▼
A14: Odense Universitetshospital/Svendborg | B14: Hovedart 9: Interne udgifter og indtægter | G14: 0
A15: Odense Universitetshospital/Svendborg | B15: I alt | C15: =SUMIFS((C7:C14),(A7:A14),A15) -> 182344 | D15: =SUMIFS((D7:D14),(A7:A14),A15) -> 197920 | E15: =SUMIFS((E7:E14),(A7:A14),A15) -> 227985 | F15: =SUMIFS((F7:F14),(A7:A14),A15) -> 217589 | G15: -15576 | H15: -7,9%▼
A16: Sygehus Sønderjylland | G16: 0
A17: Sygehus Sønderjylland | B17: Hovedart 1: Lønninger | C17: 8584 | D17: 18981 | E17: 15025 | F17: 20227 | G17: -10397 | H17: -54,8%▼
A18: Sygehus Sønderjylland | B18: Hovedart 2: Varekøb | C18: 3324 | D18: -825 | E18: 2846 | F18: 5549 | G18: 4149 | H18: -502,9%▼
A19: Sygehus Sønderjylland | B19: Hovedart 4: Tjenesteydelser m.v. | C19: 53707 | D19: 45706 | E19: 47526 | F19: 40558 | G19: 8001 | H19: 17,5%▲
A20: Sygehus Sønderjylland | B20: Hovedart 5: Tilskud og overførsler | E20: 3 | F20: 0 | G20: 0
A21: Sygehus Sønderjylland | B21: Hovedart 6: Finansudgifter | F21: 0 | G21: 0
A22: Sygehus Sønderjylland | B22: Hovedart 7: Indtægter | C22: -18494 | D22: -11937 | E22: -4783 | F22: -8160 | G22: -6557 | H22: 54,9%▲
A23: Sygehus Sønderjylland | B23: Hovedart 8: Finansindtægter | C23: -59 | D23: -78 | G23: 19 | H23: -24,4%▼
A24: Sygehus Sønderjylland | B24: Hovedart 9: Interne udgifter og indtægter | G24: 0
A25: Sygehus Sønderjylland | B25: I alt | C25: =SUMIFS((C7:C24),(A7:A24),A25) -> 47062 | D25: =SUMIFS((D7:D24),(A7:A24),A25) -> 51847 | E25: =SUMIFS((E7:E24),(A7:A24),A25) -> 60617 | F25: =SUMIFS((F7:F24),(A7:A24),A25) -> 58174 | G25: -4785 | H25: -9,2%▼
A26: Esbjerg og Grindsted Sygehus | G26: 0
A27: Esbjerg og Grindsted Sygehus | B27: Hovedart 1: Lønninger | C27: 8542 | D27: 18477 | E27: 14296 | F27: 19345 | G27: -9935 | H27: -53,8%▼
A28: Esbjerg og Grindsted Sygehus | B28: Hovedart 2: Varekøb | C28: 3307 | D28: -803 | E28: 2708 | F28: 5307 | G28: 4110 | H28: -511,8%▼
A29: Esbjerg og Grindsted Sygehus | B29: Hovedart 4: Tjenesteydelser m.v. | C29: 53444 | D29: 44493 | E29: 45221 | F29: 38790 | G29: 8951 | H29: 20,1%▲
A30: Esbjerg og Grindsted Sygehus | B30: Hovedart 5: Tilskud og overførsler | E30: 3 | F30: 0 | G30: 0
A31: Esbjerg og Grindsted Sygehus | B31: Hovedart 6: Finansudgifter | G31: 0
A32: Esbjerg og Grindsted Sygehus | B32: Hovedart 7: Indtægter | C32: -18404 | D32: -11620 | E32: -4551 | F32: -7805 | G32: -6784 | H32: 58,4%▲
A33: Esbjerg og Grindsted Sygehus | B33: Hovedart 8: Finansindtægter | C33: -59 | D33: -76 | G33: 17 | H33: -22,4%▼
A34: Esbjerg og Grindsted Sygehus | B34: Hovedart 9: Interne udgifter og indtægter | G34: 0
A35: Esbjerg og Grindsted Sygehus | B35: I alt | C35: =SUMIFS((C7:C34),(A7:A34),A35) -> 46830 | D35: =SUMIFS((D7:D34),(A7:A34),A35) -> 50471 | E35: =SUMIFS((E7:E34),(A7:A34),A35) -> 57677 | F35: =SUMIFS((F7:F34),(A7:A34),A35) -> 55637 | G35: -3641 | H35: -7,2%▼
A36: Kolding og Middelfart Sygehuse | G36: 0
A37: Kolding og Middelfart Sygehuse | B37: Hovedart 1: Lønninger | C37: 6406 | D37: 13963 | E37: 10943 | F37: 15579 | G37: -7557 | H37: -54,1%▼
A38: Kolding og Middelfart Sygehuse | B38: Hovedart 2: Varekøb | C38: 2480 | D38: -607 | E38: 2073 | F38: 4274 | G38: 3087 | H38: -508,6%▼
A39: Kolding og Middelfart Sygehuse | B39: Hovedart 4: Tjenesteydelser m.v. | C39: 40076 | D39: 33623 | E39: 34613 | F39: 31239 | G39: =IF(ISERROR(C39- D39)=TRUE,"",C39 - D39) -> 6453 | H39: =IF(ISERROR((((C39- D39)/D39)*100)=TRUE),"",IF((((C39- D39)/D39)*100)<-7,FIXED(((C39- D39)/D39)*100, 1,TRUE) &"%" & "▼",IF((((C39- D39)/D39)*100)>7,FIXED(((C39- D39)/D39)*100, 1,TRUE) &"%" &"▲",FIXED(((C39- D39)/D39)*100, 1,TRUE)&"%"))) -> 19,2%▲
A40: Kolding og Middelfart Sygehuse | B40: Hovedart 5: Tilskud og overførsler | E40: 2 | G40: 0
A41: Kolding og Middelfart Sygehuse | B41: Hovedart 6: Finansudgifter | G41: 0
A42: Kolding og Middelfart Sygehuse | B42: Hovedart 7: Indtægter | C42: -13801 | D42: -8781 | E42: -3484 | F42: -6285 | G42: -5020 | H42: 57,2%▲
A43: Kolding og Middelfart Sygehuse | B43: Hovedart 8: Finansindtægter | C43: -44 | D43: -58 | G43: 14 | H43: -24,1%▼
A44: Kolding og Middelfart Sygehuse | B44: Hovedart 9: Interne udgifter og indtægter | G44: 0
A45: Kolding og Middelfart Sygehuse | B45: I alt | C45: =SUMIFS((C7:C44),(A7:A44),A45) -> 35117 | D45: =SUMIFS((D7:D44),(A7:A44),A45) -> 38140 | E45: =SUMIFS((E7:E44),(A7:A44),A45) -> 44147 | F45: =SUMIFS((F7:F44),(A7:A44),A45) -> 44807 | G45: -3023 | H45: -7,9%▼
A46: Vejle Sygehus | G46: 0
A47: Vejle Sygehus | B47: Hovedart 1: Lønninger | C47: 9119 | D47: 19124 | E47: 14988 | F47: 19041 | G47: -10005 | H47: -52,3%▼
A48: Vejle Sygehus | B48: Hovedart 2: Varekøb | C48: 3530 | D48: -831 | E48: 2839 | F48: 5224 | G48: 4361 | H48: -524,8%▼
A49: Vejle Sygehus | B49: Hovedart 4: Tjenesteydelser m.v. | C49: 57046 | D49: 46053 | E49: 47408 | F49: 38181 | G49: 10993 | H49: 23,9%▲
A50: Vejle Sygehus | B50: Hovedart 5: Tilskud og overførsler | E50: 3 | G50: 0
A51: Vejle Sygehus | B51: Hovedart 6: Finansudgifter | G51: 0
A52: Vejle Sygehus | B52: Hovedart 7: Indtægter | C52: -19644 | D52: -12027 | E52: -4771 | F52: -7682 | G52: -7617 | H52: 63,3%▲
A53: Vejle Sygehus | B53: Hovedart 8: Finansindtægter | C53: -63 | D53: -79 | G53: 16 | H53: -20,3%▼
A54: Vejle Sygehus | B54: Hovedart 9: Interne udgifter og indtægter | G54: 0
A55: Vejle Sygehus | B55: I alt | C55: =SUMIFS((C7:C54),(A7:A54),A55) -> 49988 | D55: =SUMIFS((D7:D54),(A7:A54),A55) -> 52240 | E55: =SUMIFS((E7:E54),(A7:A54),A55) -> 60467 | F55: =SUMIFS((F7:F54),(A7:A54),A55) -> 54764 | G55: -2252 | H55: -4,3%
A56: Friklinikken i Grindsted | G56: 0
A57: Friklinikken i Grindsted | B57: Hovedart 1: Lønninger | C57: 345 | D57: 734 | E57: 551 | F57: 755 | G57: -389 | H57: -53,0%▼
A58: Friklinikken i Grindsted | B58: Hovedart 2: Varekøb | C58: 133 | D58: -32 | E58: 104 | F58: 207 | G58: 165 | H58: -515,6%▼
A59: Friklinikken i Grindsted | B59: Hovedart 4: Tjenesteydelser m.v. | C59: 2155 | D59: 1766 | E59: 1742 | F59: 1514 | G59: 389 | H59: 22,0%▲
A60: Friklinikken i Grindsted | B60: Hovedart 5: Tilskud og overførsler | G60: 0
A61: Friklinikken i Grindsted | B61: Hovedart 6: Finansudgifter | G61: 0
A62: Friklinikken i Grindsted | B62: Hovedart 7: Indtægter | C62: -742 | D62: -461 | E62: -175 | F62: -305 | G62: -281 | H62: 61,0%▲
A63: Friklinikken i Grindsted | B63: Hovedart 8: Finansindtægter | C63: -2 | D63: -3 | G63: 1 | H63: -33,3%▼
A64: Friklinikken i Grindsted | B64: Hovedart 9: Interne udgifter og indtægter | G64: 0
A65: Friklinikken i Grindsted | B65: I alt | C65: =SUMIFS((C7:C64),(A7:A64),A65) -> 1889 | D65: =SUMIFS((D7:D64),(A7:A64),A65) -> 2004 | E65: =SUMIFS((E7:E64),(A7:A64),A65) -> 2222 | F65: =SUMIFS((F7:F64),(A7:A64),A65) -> 2171 | G65: -115 | H65: -5,7%
A66: Øvrige i Region Syddanmark | G66: 0
A67: Øvrige i Region Syddanmark | B67: Hovedart 1: Lønninger | G67: 0
A68: Øvrige i Region Syddanmark | B68: Hovedart 2: Varekøb | G68: 0
A69: Øvrige i Region Syddanmark | B69: Hovedart 4: Tjenesteydelser m.v. | G69: 0
A70: Øvrige i Region Syddanmark | B70: Hovedart 5: Tilskud og overførsler | G70: 0
A71: Øvrige i Region Syddanmark | B71: Hovedart 6: Finansudgifter | G71: =IF(ISERROR(C71- D71)=TRUE,"",C71 - D71) -> 0 | H71: =IF(ISERROR((((C71- D71)/D71)*100)=TRUE),"",IF((((C71- D71)/D71)*100)<-7,FIXED(((C71- D71)/D71)*100, 1,TRUE) &"%" & "▼",IF((((C71- D71)/D71)*100)>7,FIXED(((C71- D71)/D71)*100, 1,TRUE) &"%" &"▲",FIXED(((C71- D71)/D71)*100, 1,TRUE)&"%"))) -> 
A72: Øvrige i Region Syddanmark | B72: Hovedart 7: Indtægter | G72: 0
A73: Øvrige i Region Syddanmark | B73: Hovedart 8: Finansindtægter | G73: 0
A74: Øvrige i Region Syddanmark | B74: Hovedart 9: Interne udgifter og indtægter | G74: 0
A75: Øvrige i Region Syddanmark | B75: I alt | C75: =SUMIFS((C7:C74),(A7:A74),A75) -> 0 | D75: =SUMIFS((D7:D74),(A7:A74),A75) -> 0 | E75: =SUMIFS((E7:E74),(A7:A74),A75) -> 0 | F75: =SUMIFS((F7:F74),(A7:A74),A75) -> 0 | G75: 0
A76: Ikke fordelte udgifter og indtægter | G76: 0
A77: Ikke fordelte udgifter og indtægter | B77: Hovedart 1: Lønninger | C77: 528593 | D77: 564977 | E77: 547294 | F77: 477051 | G77: -36384 | H77: -6,4%
A78: Ikke fordelte udgifter og indtægter | B78: Hovedart 2: Varekøb | C78: 133727 | D78: 285626 | E78: 149866 | F78: 298189 | G78: -151899 | H78: -53,2%▼
A79: Ikke fordelte udgifter og indtægter | B79: Hovedart 4: Tjenesteydelser m.v. | C79: 2784033 | D79: 3569209 | E79: 3542816 | F79: 3080925 | G79: -785176 | H79: -22,0%▼
A80: Ikke fordelte udgifter og indtægter | B80: Hovedart 5: Tilskud og overførsler | C80: 15713 | D80: 13445 | E80: 15945 | F80: 15972 | G80: 2268 | H80: 16,9%▲
A81: Ikke fordelte udgifter og indtægter | B81: Hovedart 6: Finansudgifter | G81: 0
A82: Ikke fordelte udgifter og indtægter | B82: Hovedart 7: Indtægter | C82: -629562 | D82: -779741 | E82: -683573 | F82: -756862 | G82: 150179 | H82: -19,3%▼
A83: Ikke fordelte udgifter og indtægter | B83: Hovedart 8: Finansindtægter | C83: -93644 | D83: -522909 | E83: -444120 | F83: -46600 | G83: 429265 | H83: -82,1%▼
A84: Ikke fordelte udgifter og indtægter | B84: Hovedart 9: Interne udgifter og indtægter | G84: 0
A85: Ikke fordelte udgifter og indtægter | B85: I alt | C85: =SUMIFS((C7:C84),(A7:A84),A85) -> 2738860 | D85: =SUMIFS((D7:D84),(A7:A84),A85) -> 3130607 | E85: =SUMIFS((E7:E84),(A7:A84),A85) -> 3128228 | F85: =SUMIFS((F7:F84),(A7:A84),A85) -> 3068675 | G85: -391747 | H85: -12,5%▼

Sheet Skema 3
A1: Region Syddanmark, somatiske sygehuse.
B2: Skema 3:Regionale fællesudgifter og -indtægter. (1.000 kr.)
A5: Sygehus | C5: 2023 | D5: 2022 | E5: 2021 | F5: 2020 | G5: Δ2022-2023 | H5: % afvigelse | I5: Begrundelse
A6: Odense Universitetshospital/Svendborg
A7: Odense Universitetshospital/Svendborg | B7: 1.70.50: Andel af fællesudgifter | C7: 149944 | D7: 147902 | E7: 125345 | F7: 121328 | G7: =IF(ISERROR(C7- D7)=TRUE,"",C7 - D7) -> 2042 | H7: =IF(ISERROR((((C7- D7)/D7)*100)=TRUE),"",IF((((C7- D7)/D7)*100)<-7,FIXED(((C7- D7)/D7)*100, 1,TRUE) &"%" & "▼",IF((((C7- D7)/D7)*100)>7,FIXED(((C7- D7)/D7)*100, 1,TRUE) &"%" &"▲",FIXED(((C7- D7)/D7)*100, 1,TRUE)&"%"))) -> 1,4%
A8: Odense Universitetshospital/Svendborg | B8: 1.60.40: Andel af central administration af sundhed (til og med 2019) | G8: 0
A9: Odense Universitetshospital/Svendborg | B9: 1.60.41: Andel af øvrige udgifter og indtægter | G9: 0
A10: Odense Universitetshospital/Svendborg | B10: 1.50.33: Andel af central administration af sundhed (ekskl. psykiatri) | C10: 40050 | D10: 38368 | E10: 35584 | F10: 32663 | G10: 1682 | H10: 4,4%
A11: Odense Universitetshospital/Svendborg | B11: 1.50.35: Administration af det psykiatriske område (kun central del) | G11: 0
A12: Odense Universitetshospital/Svendborg | B12: I alt | C12: =SUMIFS((C7:C11),(A7:A11),A12) -> 189994 | D12: =SUMIFS((D7:D11),(A7:A11),A12) -> 186270 | E12: =SUMIFS((E7:E11),(A7:A11),A12) -> 160929 | F12: =SUMIFS((F7:F11),(A7:A11),A12) -> 153991 | G12: 3724 | H12: 2,0%
A13: Sygehus Sønderjylland | G13: 0
A14: Sygehus Sønderjylland | B14: 1.70.50: Andel af fællesudgifter | C14: 38699 | D14: 38744 | E14: 33327 | F14: 32438 | G14: -45 | H14: -0,1%
A15: Sygehus Sønderjylland | B15: 1.60.40: Andel af central administration af sundhed (til og med 2019) | G15: 0
A16: Sygehus Sønderjylland | B16: 1.60.41: Andel af øvrige udgifter og indtægter | G16: 0
A17: Sygehus Sønderjylland | B17: 1.50.33: Andel af central administration af sundhed (ekskl. psykiatri) | C17: 10337 | D17: 10051 | E17: 9461 | F17: 8733 | G17: 286 | H17: 2,8%
A18: Sygehus Sønderjylland | B18: 1.50.35: Administration af det psykiatriske område (kun central del) | G18: 0
A19: Sygehus Sønderjylland | B19: I alt | C19: =SUMIFS((C7:C18),(A7:A18),A19) -> 49036 | D19: =SUMIFS((D7:D18),(A7:A18),A19) -> 48795 | E19: =SUMIFS((E7:E18),(A7:A18),A19) -> 42788 | F19: =SUMIFS((F7:F18),(A7:A18),A19) -> 41171 | G19: 241 | H19: 0,5%
A20: Esbjerg og Grindsted Sygehus | G20: 0
A21: Esbjerg og Grindsted Sygehus | B21: 1.70.50: Andel af fællesudgifter | C21: 38510 | D21: 37716 | E21: 31711 | F21: 31024 | G21: 794 | H21: 2,1%
A22: Esbjerg og Grindsted Sygehus | B22: 1.60.40: Andel af central administration af sundhed (til og med 2019) | G22: 0
A23: Esbjerg og Grindsted Sygehus | B23: 1.60.41: Andel af øvrige udgifter og indtægter | G23: 0
A24: Esbjerg og Grindsted Sygehus | B24: 1.50.33: Andel af central administration af sundhed (ekskl. psykiatri) | C24: 10286 | D24: 9784 | E24: 9002 | F24: 8352 | G24: 502 | H24: 5,1%
A25: Esbjerg og Grindsted Sygehus | B25: 1.50.35: Administration af det psykiatriske område (kun central del) | G25: 0
A26: Esbjerg og Grindsted Sygehus | B26: I alt | C26: =SUMIFS((C7:C25),(A7:A25),A26) -> 48796 | D26: =SUMIFS((D7:D25),(A7:A25),A26) -> 47500 | E26: =SUMIFS((E7:E25),(A7:A25),A26) -> 40713 | F26: =SUMIFS((F7:F25),(A7:A25),A26) -> 39376 | G26: 1296 | H26: 2,7%
A27: Kolding og Middelfart Sygehuse | G27: 0
A28: Kolding og Middelfart Sygehuse | B28: 1.70.50: Andel af fællesudgifter | C28: 28878 | D28: 28502 | E28: 24272 | F28: 24984 | G28: 376 | H28: 1,3%
A29: Kolding og Middelfart Sygehuse | B29: 1.60.40: Andel af central administration af sundhed (til og med 2019) | G29: 0
A30: Kolding og Middelfart Sygehuse | B30: 1.60.41: Andel af øvrige udgifter og indtægter | G30: 0
A31: Kolding og Middelfart Sygehuse | B31: 1.50.33: Andel af central administration af sundhed (ekskl. psykiatri) | C31: 7713 | D31: 7394 | E31: 6890 | F31: 6726 | G31: 319 | H31: 4,3%
A32: Kolding og Middelfart Sygehuse | B32: 1.50.35: Administration af det psykiatriske område (kun central del) | G32: 0
A33: Kolding og Middelfart Sygehuse | B33: I alt | C33: =SUMIFS((C7:C32),(A7:A32),A33) -> 36591 | D33: =SUMIFS((D7:D32),(A7:A32),A33) -> 35896 | E33: =SUMIFS((E7:E32),(A7:A32),A33) -> 31162 | F33: =SUMIFS((F7:F32),(A7:A32),A33) -> 31710 | G33: 695 | H33: 1,9%
A34: Vejle Sygehus | G34: 0
A35: Vejle Sygehus | B35: 1.70.50: Andel af fællesudgifter | C35: 39553 | D35: 39038 | E35: 33244 | F35: 30536 | G35: 515 | H35: 1,3%
A36: Vejle Sygehus | B36: 1.60.40: Andel af central administration af sundhed (til og med 2019) | G36: 0
A37: Vejle Sygehus | B37: 1.60.41: Andel af øvrige udgifter og indtægter | G37: 0
A38: Vejle Sygehus | B38: 1.50.33: Andel af central administration af sundhed (ekskl. psykiatri) | C38: 10565 | D38: 10127 | E38: 9438 | F38: 8221 | G38: 438 | H38: 4,3%
A39: Vejle Sygehus | B39: 1.50.35: Administration af det psykiatriske område (kun central del) | G39: =IF(ISERROR(C39- D39)=TRUE,"",C39 - D39) -> 0 | H39: =IF(ISERROR((((C39- D39)/D39)*100)=TRUE),"",IF((((C39- D39)/D39)*100)<-7,FIXED(((C39- D39)/D39)*100, 1,TRUE) &"%" & "▼",IF((((C39- D39)/D39)*100)>7,FIXED(((C39- D39)/D39)*100, 1,TRUE) &"%" &"▲",FIXED(((C39- D39)/D39)*100, 1,TRUE)&"%"))) -> 
A40: Vejle Sygehus | B40: I alt | C40: =SUMIFS((C7:C39),(A7:A39),A40) -> 50118 | D40: =SUMIFS((D7:D39),(A7:A39),A40) -> 49165 | E40: =SUMIFS((E7:E39),(A7:A39),A40) -> 42682 | F40: =SUMIFS((F7:F39),(A7:A39),A40) -> 38757 | G40: 953 | H40: 1,9%
A41: Friklinikken i Grindsted | G41: 0
A42: Friklinikken i Grindsted | B42: 1.70.50: Andel af fællesudgifter | C42: 1553 | D42: 1497 | E42: 1221 | F42: 1211 | G42: 56 | H42: 3,7%
A43: Friklinikken i Grindsted | B43: 1.60.40: Andel af central administration af sundhed (til og med 2019) | G43: 0
A44: Friklinikken i Grindsted | B44: 1.60.41: Andel af øvrige udgifter og indtægter | G44: 0
A45: Friklinikken i Grindsted | B45: 1.50.33: Andel af central administration af sundhed (ekskl. psykiatri) | C45: 415 | D45: 388 | E45: 347 | F45: 326 | G45: 27 | H45: 7,0%
A46: Friklinikken i Grindsted | B46: 1.50.35: Administration af det psykiatriske område (kun central del) | G46: 0
A47: Friklinikken i Grindsted | B47: I alt | C47: =SUMIFS((C7:C46),(A7:A46),A47) -> 1968 | D47: =SUMIFS((D7:D46),(A7:A46),A47) -> 1885 | E47: =SUMIFS((E7:E46),(A7:A46),A47) -> 1568 | F47: =SUMIFS((F7:F46),(A7:A46),A47) -> 1537 | G47: 83 | H47: 4,4%
A48: Øvrige i Region Syddanmark | G48: 0
A49: Øvrige i Region Syddanmark | B49: 1.70.50: Andel af fællesudgifter | G49: 0
A50: Øvrige i Region Syddanmark | B50: 1.60.40: Andel af central administration af sundhed (til og med 2019) | G50: 0
A51: Øvrige i Region Syddanmark | B51: 1.60.41: Andel af øvrige udgifter og indtægter | G51: 0
A52: Øvrige i Region Syddanmark | B52: 1.50.33: Andel af central administration af sundhed (ekskl. psykiatri) | G52: 0
A53: Øvrige i Region Syddanmark | B53: 1.50.35: Administration af det psykiatriske område (kun central del) | G53: 0
A54: Øvrige i Region Syddanmark | B54: I alt | C54: =SUMIFS((C7:C53),(A7:A53),A54) -> 0 | D54: =SUMIFS((D7:D53),(A7:A53),A54) -> 0 | E54: =SUMIFS((E7:E53),(A7:A53),A54) -> 0 | F54: =SUMIFS((F7:F53),(A7:A53),A54) -> 0 | G54: 0
A55: Ikke fordelte udgifter og indtægter | G55: 0
A56: Ikke fordelte udgifter og indtægter | B56: 1.70.50: Andel af fællesudgifter | C56: 131971 | D56: 139788 | E56: 162677 | F56: 226914 | G56: -7817 | H56: -5,6%
A57: Ikke fordelte udgifter og indtægter | B57: 1.60.40: Andel af central administration af sundhed (til og med 2019) | G57: 0
A58: Ikke fordelte udgifter og indtægter | B58: 1.60.41: Andel af øvrige udgifter og indtægter | C58: 26973 | D58: 33929 | E58: 33565 | F58: 80462 | G58: -6956 | H58: -20,5%▼
A59: Ikke fordelte udgifter og indtægter | B59: 1.50.33: Andel af central administration af sundhed (ekskl. psykiatri) | G59: 0
A60: Ikke fordelte udgifter og indtægter | B60: 1.50.35: Administration af det psykiatriske område (kun central del) | F60: 21633 | G60: 0
A61: Ikke fordelte udgifter og indtægter | B61: I alt | C61: =SUMIFS((C7:C60),(A7:A60),A61) -> 158944 | D61: =SUMIFS((D7:D60),(A7:A60),A61) -> 173717 | E61: =SUMIFS((E7:E60),(A7:A60),A61) -> 196242 | F61: =SUMIFS((F7:F60),(A7:A60),A61) -> 329009 | G61: -14773 | H61: -8,5%▼

Sheet Skema 4
A1: Region Syddanmark, somatiske sygehuse.
B2: Skema 4: Udgifter og indtægter til og fra psykiatriske afdelinger konteret på somatiske sygehuse. (1.000 kr.)
A5: Sygehus | C5: 2023 | D5: 2022 | E5: 2021 | F5: 2020 | G5: Δ2022-2023 | H5: % afvigelse | I5: Begrundelse
A6: Odense Universitetshospital/Svendborg
A7: Odense Universitetshospital/Svendborg | B7: Korrektion | G7: =IF(ISERROR(C7- D7)=TRUE,"",C7 - D7) -> 0 | H7: =IF(ISERROR((((C7- D7)/D7)*100)=TRUE),"",IF((((C7- D7)/D7)*100)<-7,FIXED(((C7- D7)/D7)*100, 1,TRUE) &"%" & "▼",IF((((C7- D7)/D7)*100)>7,FIXED(((C7- D7)/D7)*100, 1,TRUE) &"%" &"▲",FIXED(((C7- D7)/D7)*100, 1,TRUE)&"%"))) -> 
A8: Odense Universitetshospital/Svendborg | B8: Lønudg. på psyk. afd.,somatiske sygehuse | G8: 0
A9: Odense Universitetshospital/Svendborg | B9: Øvrige udg. til psyk. afd.,somatiske sygehuse | G9: 0
A10: Odense Universitetshospital/Svendborg | B10: I alt | C10: =SUMIFS((C7:C9),(A7:A9),A10) -> 0 | D10: =SUMIFS((D7:D9),(A7:A9),A10) -> 0 | E10: =SUMIFS((E7:E9),(A7:A9),A10) -> 0 | F10: =SUMIFS((F7:F9),(A7:A9),A10) -> 0 | G10: 0
A11: Sygehus Sønderjylland | G11: 0
A12: Sygehus Sønderjylland | B12: Korrektion | G12: 0
A13: Sygehus Sønderjylland | B13: Lønudg. på psyk. afd.,somatiske sygehuse | G13: 0
A14: Sygehus Sønderjylland | B14: Øvrige udg. til psyk. afd.,somatiske sygehuse | G14: 0
A15: Sygehus Sønderjylland | B15: I alt | C15: =SUMIFS((C7:C14),(A7:A14),A15) -> 0 | D15: =SUMIFS((D7:D14),(A7:A14),A15) -> 0 | E15: =SUMIFS((E7:E14),(A7:A14),A15) -> 0 | F15: =SUMIFS((F7:F14),(A7:A14),A15) -> 0 | G15: 0
A16: Esbjerg og Grindsted Sygehus | G16: 0
A17: Esbjerg og Grindsted Sygehus | B17: Korrektion | G17: 0
A18: Esbjerg og Grindsted Sygehus | B18: Lønudg. på psyk. afd.,somatiske sygehuse | G18: 0
A19: Esbjerg og Grindsted Sygehus | B19: Øvrige udg. til psyk. afd.,somatiske sygehuse | G19: 0
A20: Esbjerg og Grindsted Sygehus | B20: I alt | C20: =SUMIFS((C7:C19),(A7:A19),A20) -> 0 | D20: =SUMIFS((D7:D19),(A7:A19),A20) -> 0 | E20: =SUMIFS((E7:E19),(A7:A19),A20) -> 0 | F20: =SUMIFS((F7:F19),(A7:A19),A20) -> 0 | G20: 0
A21: Kolding og Middelfart Sygehuse | G21: 0
A22: Kolding og Middelfart Sygehuse | B22: Korrektion | G22: 0
A23: Kolding og Middelfart Sygehuse | B23: Lønudg. på psyk. afd.,somatiske sygehuse | G23: 0
A24: Kolding og Middelfart Sygehuse | B24: Øvrige udg. til psyk. afd.,somatiske sygehuse | G24: 0
A25: Kolding og Middelfart Sygehuse | B25: I alt | C25: =SUMIFS((C7:C24),(A7:A24),A25) -> 0 | D25: =SUMIFS((D7:D24),(A7:A24),A25) -> 0 | E25: =SUMIFS((E7:E24),(A7:A24),A25) -> 0 | F25: =SUMIFS((F7:F24),(A7:A24),A25) -> 0 | G25: 0
A26: Vejle Sygehus | G26: 0
A27: Vejle Sygehus | B27: Korrektion | G27: 0
A28: Vejle Sygehus | B28: Lønudg. på psyk. afd.,somatiske sygehuse | G28: 0
A29: Vejle Sygehus | B29: Øvrige udg. til psyk. afd.,somatiske sygehuse | G29: 0
A30: Vejle Sygehus | B30: I alt | C30: =SUMIFS((C7:C29),(A7:A29),A30) -> 0 | D30: =SUMIFS((D7:D29),(A7:A29),A30) -> 0 | E30: =SUMIFS((E7:E29),(A7:A29),A30) -> 0 | F30: =SUMIFS((F7:F29),(A7:A29),A30) -> 0 | G30: 0
A31: Friklinikken i Grindsted | G31: 0
A32: Friklinikken i Grindsted | B32: Korrektion | G32: 0
A33: Friklinikken i Grindsted | B33: Lønudg. på psyk. afd.,somatiske sygehuse | G33: 0
A34: Friklinikken i Grindsted | B34: Øvrige udg. til psyk. afd.,somatiske sygehuse | G34: 0
A35: Friklinikken i Grindsted | B35: I alt | C35: =SUMIFS((C7:C34),(A7:A34),A35) -> 0 | D35: =SUMIFS((D7:D34),(A7:A34),A35) -> 0 | E35: =SUMIFS((E7:E34),(A7:A34),A35) -> 0 | F35: =SUMIFS((F7:F34),(A7:A34),A35) -> 0 | G35: 0
A36: Øvrige i Region Syddanmark | G36: 0
A37: Øvrige i Region Syddanmark | B37: Korrektion | G37: 0
A38: Øvrige i Region Syddanmark | B38: Lønudg. på psyk. afd.,somatiske sygehuse | G38: 0
A39: Øvrige i Region Syddanmark | B39: Øvrige udg. til psyk. afd.,somatiske sygehuse | G39: 0
A40: Øvrige i Region Syddanmark | B40: I alt | C40: =SUMIFS((C7:C39),(A7:A39),A40) -> 0 | D40: =SUMIFS((D7:D39),(A7:A39),A40) -> 0 | E40: =SUMIFS((E7:E39),(A7:A39),A40) -> 0 | F40: =SUMIFS((F7:F39),(A7:A39),A40) -> 0 | G40: 0
A41: Ikke fordelte udgifter og indtægter | G41: 0
A42: Ikke fordelte udgifter og indtægter | B42: Korrektion | G42: 0
A43: Ikke fordelte udgifter og indtægter | B43: Lønudg. på psyk. afd.,somatiske sygehuse | G43: 0
A44: Ikke fordelte udgifter og indtægter | B44: Øvrige udg. til psyk. afd.,somatiske sygehuse | G44: 0
A45: Ikke fordelte udgifter og indtægter | B45: I alt | C45: =SUMIFS((C7:C44),(A7:A44),A45) -> 0 | D45: =SUMIFS((D7:D44),(A7:A44),A45) -> 0 | E45: =SUMIFS((E7:E44),(A7:A44),A45) -> 0 | F45: =SUMIFS((F7:F44),(A7:A44),A45) -> 0 | G45: 0

Sheet Skema 5
A1: Region Syddanmark, somatiske sygehuse.
B2: Skema 5: Leasing- og huslejeudgifter. (1.000 kr.)
A5: Sygehus | C5: 2023 | D5: 2022 | E5: 2021 | F5: 2020 | G5: Δ2022-2023 | H5: % afvigelse | I5: Begrundelse
A6: Odense Universitetshospital/Svendborg
A7: Odense Universitetshospital/Svendborg | B7: Andre udgifter | G7: =IF(ISERROR(C7- D7)=TRUE,"",C7 - D7) -> 0 | H7: =IF(ISERROR((((C7- D7)/D7)*100)=TRUE),"",IF((((C7- D7)/D7)*100)<-7,FIXED(((C7- D7)/D7)*100, 1,TRUE) &"%" & "▼",IF((((C7- D7)/D7)*100)>7,FIXED(((C7- D7)/D7)*100, 1,TRUE) &"%" &"▲",FIXED(((C7- D7)/D7)*100, 1,TRUE)&"%"))) -> 
A8: Odense Universitetshospital/Svendborg | B8: Leasing- og lejeudgifter | C8: 6510 | D8: 4691 | E8: 4187.067 | F8: 3815.895 | G8: 1819 | H8: 38,8%▲ | I8: Afd. Z har leaset mikrokirurgisk robot (udg. på 1,5 mio. kr.)
A9: Odense Universitetshospital/Svendborg | B9: Huslejeudgifter | C9: 10285 | D9: 10206 | E9: 9363.124 | F9: 9507.521 | G9: 79 | H9: 0,8%
A10: Odense Universitetshospital/Svendborg | B10: I alt | C10: =SUMIFS((C7:C9),(A7:A9),A10) -> 16795 | D10: =SUMIFS((D7:D9),(A7:A9),A10) -> 14897 | E10: =SUMIFS((E7:E9),(A7:A9),A10) -> 13550.191 | F10: =SUMIFS((F7:F9),(A7:A9),A10) -> 13323.416 | G10: 1898 | H10: 12,7%▲
A11: Sygehus Sønderjylland | G11: 0
A12: Sygehus Sønderjylland | B12: Andre udgifter | G12: 0
A13: Sygehus Sønderjylland | B13: Leasing- og lejeudgifter | C13: 2213 | D13: 2367 | E13: 2838 | G13: -154 | H13: -6,5%
A14: Sygehus Sønderjylland | B14: Huslejeudgifter | C14: 3924 | D14: 5109 | E14: 1547 | F14: 3417 | G14: -1185 | H14: -23,2%▼
A15: Sygehus Sønderjylland | B15: I alt | C15: =SUMIFS((C7:C14),(A7:A14),A15) -> 6137 | D15: =SUMIFS((D7:D14),(A7:A14),A15) -> 7476 | E15: =SUMIFS((E7:E14),(A7:A14),A15) -> 4385 | F15: =SUMIFS((F7:F14),(A7:A14),A15) -> 3417 | G15: -1339 | H15: -17,9%▼
A16: Esbjerg og Grindsted Sygehus | G16: 0
A17: Esbjerg og Grindsted Sygehus | B17: Andre udgifter | G17: 0
A18: Esbjerg og Grindsted Sygehus | B18: Leasing- og lejeudgifter | C18: 1247 | D18: 1248 | E18: 1515 | F18: 1491 | G18: -1 | H18: -0,1%
A19: Esbjerg og Grindsted Sygehus | B19: Huslejeudgifter | C19: 988 | D19: 1009 | E19: 1044 | F19: 1089 | G19: -21 | H19: -2,1%
A20: Esbjerg og Grindsted Sygehus | B20: I alt | C20: =SUMIFS((C7:C19),(A7:A19),A20) -> 2235 | D20: =SUMIFS((D7:D19),(A7:A19),A20) -> 2257 | E20: =SUMIFS((E7:E19),(A7:A19),A20) -> 2559 | F20: =SUMIFS((F7:F19),(A7:A19),A20) -> 2580 | G20: -22 | H20: -1,0%
A21: Kolding og Middelfart Sygehuse | G21: 0
A22: Kolding og Middelfart Sygehuse | B22: Andre udgifter | G22: 0
A23: Kolding og Middelfart Sygehuse | B23: Leasing- og lejeudgifter | C23: 248 | D23: 246.04927 | E23: 564.91917 | F23: 610 | G23: 1.95073 | H23: 0,8% | I23: Ændret fordeling mellem matriklerne
A24: Kolding og Middelfart Sygehuse | B24: Huslejeudgifter | C24: 701 | D24: 6780.493355 | E24: 3378.92958 | F24: 743 | G24: -6079.493355 | H24: -89,7%▼ | I24: Skyldes primært hvor covid er placeret
A25: Kolding og Middelfart Sygehuse | B25: I alt | C25: =SUMIFS((C7:C24),(A7:A24),A25) -> 949 | D25: =SUMIFS((D7:D24),(A7:A24),A25) -> 7026.542625 | E25: =SUMIFS((E7:E24),(A7:A24),A25) -> 3943.84875 | F25: =SUMIFS((F7:F24),(A7:A24),A25) -> 1353 | G25: -6077.542625 | H25: -86,5%▼
A26: Vejle Sygehus | G26: 0
A27: Vejle Sygehus | B27: Andre udgifter | G27: 0
A28: Vejle Sygehus | B28: Leasing- og lejeudgifter | C28: 454 | D28: 471.72114 | E28: 366.16135 | F28: 381 | G28: -17.72114 | H28: -3,8% | I28: Ændret fordeling mellem matriklerne
A29: Vejle Sygehus | B29: Huslejeudgifter | C29: 789 | D29: 1598.647465 | E29: 5965.64446 | F29: 5003 | G29: -809.6474654 | H29: -50,6%▼ | I29: Skyldes primært hvor covid er placeret
A30: Vejle Sygehus | B30: I alt | C30: =SUMIFS((C7:C29),(A7:A29),A30) -> 1243 | D30: =SUMIFS((D7:D29),(A7:A29),A30) -> 2070.368605 | E30: =SUMIFS((E7:E29),(A7:A29),A30) -> 6331.80581 | F30: =SUMIFS((F7:F29),(A7:A29),A30) -> 5384 | G30: -827.3686054 | H30: -40,0%▼
A31: Friklinikken i Grindsted | G31: 0
A32: Friklinikken i Grindsted | B32: Andre udgifter | G32: 0
A33: Friklinikken i Grindsted | B33: Leasing- og lejeudgifter | G33: 0
A34: Friklinikken i Grindsted | B34: Huslejeudgifter | G34: 0
A35: Friklinikken i Grindsted | B35: I alt | C35: =SUMIFS((C7:C34),(A7:A34),A35) -> 0 | D35: =SUMIFS((D7:D34),(A7:A34),A35) -> 0 | E35: =SUMIFS((E7:E34),(A7:A34),A35) -> 0 | F35: =SUMIFS((F7:F34),(A7:A34),A35) -> 0 | G35: 0
A36: Øvrige i Region Syddanmark | G36: 0
A37: Øvrige i Region Syddanmark | B37: Andre udgifter | G37: 0
A38: Øvrige i Region Syddanmark | B38: Leasing- og lejeudgifter | G38: 0
A39: Øvrige i Region Syddanmark | B39: Huslejeudgifter | G39: 0
A40: Øvrige i Region Syddanmark | B40: I alt | C40: =SUMIFS((C7:C39),(A7:A39),A40) -> 0 | D40: =SUMIFS((D7:D39),(A7:A39),A40) -> 0 | E40: =SUMIFS((E7:E39),(A7:A39),A40) -> 0 | F40: =SUMIFS((F7:F39),(A7:A39),A40) -> 0 | G40: 0
A41: Ikke fordelte udgifter og indtægter | G41: 0
A42: Ikke fordelte udgifter og indtægter | B42: Andre udgifter | G42: 0
A43: Ikke fordelte udgifter og indtægter | B43: Leasing- og lejeudgifter | C43: 266170 | D43: 298785 | E43: 286758 | F43: 408067 | G43: -32615 | H43: -10,9%▼
A44: Ikke fordelte udgifter og indtægter | B44: Huslejeudgifter | G44: 0
A45: Ikke fordelte udgifter og indtægter | B45: I alt | C45: =SUMIFS((C7:C44),(A7:A44),A45) -> 266170 | D45: =SUMIFS((D7:D44),(A7:A44),A45) -> 298785 | E45: =SUMIFS((E7:E44),(A7:A44),A45) -> 286758 | F45: =SUMIFS((F7:F44),(A7:A44),A45) -> 408067 | G45: -32615 | H45: -10,9%▼

Sheet Skema 6
A1: Region Syddanmark, somatiske sygehuse.
B2: Skema 6: Udgifter til andet end patientbehandling. (1.000 kr.)
A5: Sygehus | C5: 2023 | D5: 2022 | E5: 2021 | F5: 2020 | G5: Δ2022-2023 | H5: % afvigelse | I5: Begrundelse
A6: Odense Universitetshospital/Svendborg
A7: Odense Universitetshospital/Svendborg | B7: Skema 6.1: Center for voldsramte (Bispebjerg) | D7: 0 | G7: =IF(ISERROR(C7- D7)=TRUE,"",C7 - D7) -> 0 | H7: =IF(ISERROR((((C7- D7)/D7)*100)=TRUE),"",IF((((C7- D7)/D7)*100)<-7,FIXED(((C7- D7)/D7)*100, 1,TRUE) &"%" & "▼",IF((((C7- D7)/D7)*100)>7,FIXED(((C7- D7)/D7)*100, 1,TRUE) &"%" &"▲",FIXED(((C7- D7)/D7)*100, 1,TRUE)&"%"))) -> 
A8: Odense Universitetshospital/Svendborg | B8: Skema 6.2: Ventilatørbistand i hjemmet, respiratorpatienter | C8: 4801.673 | D8: 4967.954 | E8: 5498.615 | F8: 4133 | G8: -166.281 | H8: -3,3%
A9: Odense Universitetshospital/Svendborg | B9: Skema 6.3: Blodprøvetagning i eget hjem | D9: 0 | G9: 0
A10: Odense Universitetshospital/Svendborg | B10: Skema 6.4: Psykinfo + pårørende | D10: 0 | G10: 0
A11: Odense Universitetshospital/Svendborg | B11: Skema 6.5: Leveret udstyr til patienter i eget hjem, ilt og sonderemedier | C11: 29488.289 | D11: 26822.423 | E11: 26326.947 | F11: 23411 | G11: 2665.866 | H11: 9,9%▲ | I11: Stigning i udgifter til sonderemedier
A12: Odense Universitetshospital/Svendborg | B12: Skema 6.6: Montebello (Nordsjællands Hospitaler) | D12: 0 | G12: 0
A13: Odense Universitetshospital/Svendborg | B13: Skema 6.7: Satspulje korrektioner mellem år | D13: 0 | G13: 0
A14: Odense Universitetshospital/Svendborg | B14: Skema 6.8: Klinisk farmakologisk rådgivning af praksissektoren | C14: 3600.369 | D14: 3488.224 | E14: 2954.728 | F14: 2463 | G14: 112.145 | H14: 3,2%
A15: Odense Universitetshospital/Svendborg | B15: Skema 6.9: Tandregulering ifm. operation | D15: 0 | G15: 0
A16: Odense Universitetshospital/Svendborg | B16: Skema 6.10: Giftlinjen | D16: 0 | G16: 0
A17: Odense Universitetshospital/Svendborg | B17: Skema 6.11: Tjenestemandspensioner | D17: 0 | G17: 0
A18: Odense Universitetshospital/Svendborg | B18: Skema 6.12: Art 4.6 Betalinger til staten | D18: 0 | G18: 0
A19: Odense Universitetshospital/Svendborg | B19: Skema 6.13: Art 4.7 Betalinger til kommuner | D19: 0 | G19: 0
A20: Odense Universitetshospital/Svendborg | B20: Skema 6.14: Art 4.8 Betalinger til andre regioner | D20: 0 | G20: 0
A21: Odense Universitetshospital/Svendborg | B21: Skema 6.15: Art 7.6 Betalinger fra staten | D21: 0 | G21: 0
A22: Odense Universitetshospital/Svendborg | B22: Skema 6.16: Art 7.7 Betalinger fra kommuner | D22: 0 | G22: 0
A23: Odense Universitetshospital/Svendborg | B23: Skema 6.17: Art 7.8 Betalinger fra andre regioner | D23: 0 | G23: 0
A24: Odense Universitetshospital/Svendborg | B24: Skema 6.18: Betalinger til selvejende, private og udenlandske sygehuse | D24: 0 | G24: 0
A25: Odense Universitetshospital/Svendborg | B25: Skema 6.19: Dækningsafgift/ejendomsskat | C25: 15080.348 | D25: 15080.346 | E25: 15078.69 | F25: 14996 | G25: 0.002 | H25: 0,0%
A26: Odense Universitetshospital/Svendborg | B26: Skema 6.20: Forsikringer/erstatninger | C26: 16021.465 | D26: 16921.977 | E26: 16181.244 | F26: 15095 | G26: -900.512 | H26: -5,3%
A27: Odense Universitetshospital/Svendborg | B27: Skema 6.21: Vederlagsfri Lab. –ydelser og andre ydelser til praksissektoren | C27: 136960.149 | D27: 128582.887 | E27: 127059.262 | F27: 118393 | G27: 8377.262 | H27: 6,5%
A28: Odense Universitetshospital/Svendborg | B28: Skema 6.22: Patienttransport | D28: 0 | G28: 0
A29: Odense Universitetshospital/Svendborg | B29: Skema 6.23: Serviceydelser til/fra andre institutioner eller sygehuse udenfor regionen | D29: 0 | G29: 0
A30: Odense Universitetshospital/Svendborg | B30: Skema 6.24: Udgifter til eksternt finansierede forskning | C30: 79713.092 | D30: 80991.672 | E30: 68231.315 | F30: 58132 | G30: -1278.58 | H30: -1,6%
A31: Odense Universitetshospital/Svendborg | B31: Skema 6.25: Forebyggelse rettet mod praksissektoren og kommuner | D31: 0 | G31: 0
A32: Odense Universitetshospital/Svendborg | B32: Skema 6.26: Praksisreservelæger | D32: 0 | G32: 0
A33: Odense Universitetshospital/Svendborg | B33: Skema 6.27: Præhospital | C33: 11372.738 | D33: 11651.439 | E33: 11698.373 | F33: 11546 | G33: -278.701 | H33: -2,4%
A34: Odense Universitetshospital/Svendborg | B34: Skema 6.28: Udgifter til Danske Regioner (Kontigent, MedCom, Fællesproj.) | D34: 0 | G34: 0
A35: Odense Universitetshospital/Svendborg | B35: Skema 6.29: Hospice | D35: 0 | G35: 0
A36: Odense Universitetshospital/Svendborg | B36: Skema 6.30: Konsulenter(Praksis) | D36: 0 | E36: 409.624 | F36: 1774 | G36: 0 | I36: Helt udgået fra 2022
A37: Odense Universitetshospital/Svendborg | B37: Skema 6.31: Videnskabsetisk Komité | D37: 0 | G37: 0
A38: Odense Universitetshospital/Svendborg | B38: Skema 6.32: Tolkebistand | C38: 264.764 | D38: 1210.132 | E38: 1104.142 | F38: 1146 | G38: -945.368 | H38: -78,1%▼
A39: Odense Universitetshospital/Svendborg | B39: Skema 6.33: Dansk Center for Partikelterapi | D39: 0 | G39: 0
A40: Odense Universitetshospital/Svendborg | B40: Skema 6.34: Politisk organisation – overførte udgifter fra funktion 4.10.01, 4.10.02 og 4.10.04 | D40: 0 | G40: 0
A41: Odense Universitetshospital/Svendborg | B41: Skema 6.35: Øvrige udgifter, Region Sjælland | D41: 0 | G41: 0
A42: Odense Universitetshospital/Svendborg | B42: Skema 6.36: Sundhedsydelser ifm. specialsektor | D42: 0 | G42: 0
A43: Odense Universitetshospital/Svendborg | B43: Skema 6.37: Udgifter til primær sundhed fra skema 2 | D43: 0 | G43: 0
A44: Odense Universitetshospital/Svendborg | B44: Skema 6.38: Udgifter til primær sundhed fra skema 3 | D44: 0 | G44: 0
A45: Odense Universitetshospital/Svendborg | B45: Skema 6.39: Særlige udgifter ifm. COVID-19 | C45: 9334 | D45: 17380.915 | E45: 10305.578 | F45: 3947 | G45: -8046.915 | H45: -46,3%▼ | I45: Beløb svarer til OUH's andel af RSD's bloktilskud
A46: Odense Universitetshospital/Svendborg | B46: Skema 6.40: Udleveret udstyr/tilbehør ifm. cochlear implantater | C46: 3108.438 | D46: 2933.815 | E46: 2904.362 | G46: 174.623 | H46: 6,0%
A47: Odense Universitetshospital/Svendborg | B47: Skema 6.41: Luxturna-behandling, Rigshospitalet | D47: 0 | G47: 0
A48: Odense Universitetshospital/Svendborg | B48: Skema 6.42: Udleveret medicin | C48: 209513.943 | D48: 195786 | E48: 264110.897 | G48: 13727.943 | H48: 7,0%▲ | I48: Den udleverede medicin er opgjort ud fra inpirationslisten for udleveret medicin.
A49: Odense Universitetshospital/Svendborg | B49: Skema 6.43: Udgifter ifm. sundhedsklynger | C49: 6187 | D49: 0 | G49: 6187
A50: Odense Universitetshospital/Svendborg | B50: Skema 6.44: Ukrainske patienter under særlov eller asyl | D50: 0 | G50: 0
A51: Odense Universitetshospital/Svendborg | B51: Skema 6.45: Udgifter ifm. de særlige pladser i psykiatrien | G51: 0
A52: Odense Universitetshospital/Svendborg | B52: Skema 6.46: Sikringsafdelingen, Region Sjælland | G52: 0
A53: Odense Universitetshospital/Svendborg | B53: Skema 6.47: Øvrige (Kan kun benyttes efter aftale med Sundhedsdatastyrelsen) | C53: -21474.269 | D53: -12300.999 | G53: -9173.27 | H53: 74,6%▲ | I53: På skema 6.47 er der trukket indtægter ud for i alt -21.474.269 kr. idet vi dels er blevet kompenseret for Covid-udgifter ved indtægter i alt -11.302.852 kr. og for udgifter til Vinterpakke i alt -10.171.417 kr.
A54: Odense Universitetshospital/Svendborg | B54: Lukkede poster (må kun bruges af Sundhedsdatastyrelsen) | D54: 0 | G54: 0
A55: Odense Universitetshospital/Svendborg | B55: I alt | C55: =SUMIFS((C7:C54),(A7:A54),A55) -> 503971.999 | D55: =SUMIFS((D7:D54),(A7:A54),A55) -> 493516.785 | E55: =SUMIFS((E7:E54),(A7:A54),A55) -> 551863.777 | F55: =SUMIFS((F7:F54),(A7:A54),A55) -> 255036 | G55: 10455.214 | H55: 2,1%
A56: Sygehus Sønderjylland | G56: 0
A57: Sygehus Sønderjylland | B57: Skema 6.1: Center for voldsramte (Bispebjerg) | C57: 0 | G57: 0
A58: Sygehus Sønderjylland | B58: Skema 6.2: Ventilatørbistand i hjemmet, respiratorpatienter | C58: 57 | D58: 56 | E58: 61 | F58: 60 | G58: 1 | H58: 1,8%
A59: Sygehus Sønderjylland | B59: Skema 6.3: Blodprøvetagning i eget hjem | C59: 0 | G59: 0
A60: Sygehus Sønderjylland | B60: Skema 6.4: Psykinfo + pårørende | C60: 0 | G60: 0
A61: Sygehus Sønderjylland | B61: Skema 6.5: Leveret udstyr til patienter i eget hjem, ilt og sonderemedier | C61: 7575 | D61: 33 | E61: 1125 | F61: 1546 | G61: 7542 | H61: 22854,5%▲ | I61: Fejl i 2022-opgørelsen
A62: Sygehus Sønderjylland | B62: Skema 6.6: Montebello (Nordsjællands Hospitaler) | C62: 0 | G62: 0
A63: Sygehus Sønderjylland | B63: Skema 6.7: Satspulje korrektioner mellem år | C63: 0 | G63: 0
A64: Sygehus Sønderjylland | B64: Skema 6.8: Klinisk farmakologisk rådgivning af praksissektoren | C64: 0 | G64: 0
A65: Sygehus Sønderjylland | B65: Skema 6.9: Tandregulering ifm. operation | C65: 0 | G65: 0
A66: Sygehus Sønderjylland | B66: Skema 6.10: Giftlinjen | C66: 0 | G66: 0
A67: Sygehus Sønderjylland | B67: Skema 6.11: Tjenestemandspensioner | C67: 0 | G67: 0
A68: Sygehus Sønderjylland | B68: Skema 6.12: Art 4.6 Betalinger til staten | C68: 0 | G68: 0
A69: Sygehus Sønderjylland | B69: Skema 6.13: Art 4.7 Betalinger til kommuner | C69: 0 | G69: 0
A70: Sygehus Sønderjylland | B70: Skema 6.14: Art 4.8 Betalinger til andre regioner | C70: 0 | G70: 0
A71: Sygehus Sønderjylland | B71: Skema 6.15: Art 7.6 Betalinger fra staten | C71: 0 | G71: =IF(ISERROR(C71- D71)=TRUE,"",C71 - D71) -> 0 | H71: =IF(ISERROR((((C71- D71)/D71)*100)=TRUE),"",IF((((C71- D71)/D71)*100)<-7,FIXED(((C71- D71)/D71)*100, 1,TRUE) &"%" & "▼",IF((((C71- D71)/D71)*100)>7,FIXED(((C71- D71)/D71)*100, 1,TRUE) &"%" &"▲",FIXED(((C71- D71)/D71)*100, 1,TRUE)&"%"))) -> 
A72: Sygehus Sønderjylland | B72: Skema 6.16: Art 7.7 Betalinger fra kommuner | C72: 0 | G72: 0
A73: Sygehus Sønderjylland | B73: Skema 6.17: Art 7.8 Betalinger fra andre regioner | C73: 0 | G73: 0
A74: Sygehus Sønderjylland | B74: Skema 6.18: Betalinger til selvejende, private og udenlandske sygehuse | C74: 0 | G74: 0
A75: Sygehus Sønderjylland | B75: Skema 6.19: Dækningsafgift/ejendomsskat | C75: 5989 | D75: 5837 | E75: 5090 | F75: 5090 | G75: 152 | H75: 2,6%
A76: Sygehus Sønderjylland | B76: Skema 6.20: Forsikringer/erstatninger | C76: 4978 | D76: 5422 | E76: 4739 | F76: 4221 | G76: -444 | H76: -8,2%▼
A77: Sygehus Sønderjylland | B77: Skema 6.21: Vederlagsfri Lab. –ydelser og andre ydelser til praksissektoren | C77: 60743 | D77: 65140 | E77: 64895 | F77: 60256 | G77: -4397 | H77: -6,8%
A78: Sygehus Sønderjylland | B78: Skema 6.22: Patienttransport | C78: 416 | D78: 865 | E78: 513 | F78: 239 | G78: -449 | H78: -51,9%▼
A79: Sygehus Sønderjylland | B79: Skema 6.23: Serviceydelser til/fra andre institutioner eller sygehuse udenfor regionen | C79: 0 | G79: 0
A80: Sygehus Sønderjylland | B80: Skema 6.24: Udgifter til eksternt finansierede forskning | C80: 0 | G80: 0
A81: Sygehus Sønderjylland | B81: Skema 6.25: Forebyggelse rettet mod praksissektoren og kommuner | C81: 0 | G81: 0
A82: Sygehus Sønderjylland | B82: Skema 6.26: Praksisreservelæger | C82: 0 | G82: 0
A83: Sygehus Sønderjylland | B83: Skema 6.27: Præhospital | C83: 9444 | D83: 13221 | E83: 12765 | F83: 13215 | G83: -3777 | H83: -28,6%▼
A84: Sygehus Sønderjylland | B84: Skema 6.28: Udgifter til Danske Regioner (Kontigent, MedCom, Fællesproj.) | C84: 0 | G84: 0
A85: Sygehus Sønderjylland | B85: Skema 6.29: Hospice | C85: 189 | D85: 116 | E85: 138 | F85: 123 | G85: 73 | H85: 62,9%▲ | I85: Småbeløb
A86: Sygehus Sønderjylland | B86: Skema 6.30: Konsulenter(Praksis) | C86: 941 | D86: 881 | E86: 798 | F86: 787 | G86: 60 | H86: 6,8%
A87: Sygehus Sønderjylland | B87: Skema 6.31: Videnskabsetisk Komité | C87: 0 | G87: 0
A88: Sygehus Sønderjylland | B88: Skema 6.32: Tolkebistand | C88: 127 | D88: 101 | E88: 179 | F88: 215 | G88: 26 | H88: 25,7%▲ | I88: Småbeløb
A89: Sygehus Sønderjylland | B89: Skema 6.33: Dansk Center for Partikelterapi | C89: 0 | G89: 0
A90: Sygehus Sønderjylland | B90: Skema 6.34: Politisk organisation – overførte udgifter fra funktion 4.10.01, 4.10.02 og 4.10.04 | C90: 0 | G90: 0
A91: Sygehus Sønderjylland | B91: Skema 6.35: Øvrige udgifter, Region Sjælland | C91: 0 | G91: 0
A92: Sygehus Sønderjylland | B92: Skema 6.36: Sundhedsydelser ifm. specialsektor | C92: 0 | G92: 0
A93: Sygehus Sønderjylland | B93: Skema 6.37: Udgifter til primær sundhed fra skema 2 | C93: 0 | G93: 0
A94: Sygehus Sønderjylland | B94: Skema 6.38: Udgifter til primær sundhed fra skema 3 | C94: 0 | G94: 0
A95: Sygehus Sønderjylland | B95: Skema 6.39: Særlige udgifter ifm. COVID-19 | C95: 0 | D95: 13275 | E95: 1712 | F95: 1177 | G95: -13275 | H95: -100,0%▼ | I95: Fald i særlige udgifter ifm Covid
A96: Sygehus Sønderjylland | B96: Skema 6.40: Udleveret udstyr/tilbehør ifm. cochlear implantater | C96: 0 | G96: 0
A97: Sygehus Sønderjylland | B97: Skema 6.41: Luxturna-behandling, Rigshospitalet | C97: 0 | G97: 0
A98: Sygehus Sønderjylland | B98: Skema 6.42: Udleveret medicin | C98: 59031 | D98: 55055 | E98: 64240 | G98: 3976 | H98: 7,2%▲ | I98: Stigning i udleveret medicin til patienter
A99: Sygehus Sønderjylland | B99: Skema 6.43: Udgifter ifm. sundhedsklynger | C99: 0 | G99: 0
A100: Sygehus Sønderjylland | B100: Skema 6.44: Ukrainske patienter under særlov eller asyl | C100: 0 | G100: 0
A101: Sygehus Sønderjylland | B101: Skema 6.45: Udgifter ifm. de særlige pladser i psykiatrien | C101: 0 | G101: 0
A102: Sygehus Sønderjylland | B102: Skema 6.46: Sikringsafdelingen, Region Sjælland | C102: 0 | G102: 0
A103: Sygehus Sønderjylland | B103: Skema 6.47: Øvrige (Kan kun benyttes efter aftale med Sundhedsdatastyrelsen) | C103: 0 | D103: -5485 | G103: 5485 | H103: -100,0%▼
A104: Sygehus Sønderjylland | B104: Lukkede poster (må kun bruges af Sundhedsdatastyrelsen) | G104: 0
A105: Sygehus Sønderjylland | B105: I alt | C105: =SUMIFS((C7:C104),(A7:A104),A105) -> 149490 | D105: =SUMIFS((D7:D104),(A7:A104),A105) -> 154517 | E105: =SUMIFS((E7:E104),(A7:A104),A105) -> 156255 | F105: =SUMIFS((F7:F104),(A7:A104),A105) -> 86929 | G105: -5027 | H105: -3,3%
A106: Esbjerg og Grindsted Sygehus | G106: 0
A107: Esbjerg og Grindsted Sygehus | B107: Skema 6.1: Center for voldsramte (Bispebjerg) | G107: 0
A108: Esbjerg og Grindsted Sygehus | B108: Skema 6.2: Ventilatørbistand i hjemmet, respiratorpatienter | G108: 0
A109: Esbjerg og Grindsted Sygehus | B109: Skema 6.3: Blodprøvetagning i eget hjem | G109: 0
A110: Esbjerg og Grindsted Sygehus | B110: Skema 6.4: Psykinfo + pårørende | G110: 0
A111: Esbjerg og Grindsted Sygehus | B111: Skema 6.5: Leveret udstyr til patienter i eget hjem, ilt og sonderemedier | C111: 4626 | D111: 4153 | E111: 3369 | F111: 3148 | G111: 473 | H111: 11,4%▲ | I111: Generel stigende ilt
A112: Esbjerg og Grindsted Sygehus | B112: Skema 6.6: Montebello (Nordsjællands Hospitaler) | G112: 0
A113: Esbjerg og Grindsted Sygehus | B113: Skema 6.7: Satspulje korrektioner mellem år | G113: 0
A114: Esbjerg og Grindsted Sygehus | B114: Skema 6.8: Klinisk farmakologisk rådgivning af praksissektoren | G114: 0
A115: Esbjerg og Grindsted Sygehus | B115: Skema 6.9: Tandregulering ifm. operation | G115: 0
A116: Esbjerg og Grindsted Sygehus | B116: Skema 6.10: Giftlinjen | G116: 0
A117: Esbjerg og Grindsted Sygehus | B117: Skema 6.11: Tjenestemandspensioner | G117: 0
A118: Esbjerg og Grindsted Sygehus | B118: Skema 6.12: Art 4.6 Betalinger til staten | G118: 0
A119: Esbjerg og Grindsted Sygehus | B119: Skema 6.13: Art 4.7 Betalinger til kommuner | G119: 0
A120: Esbjerg og Grindsted Sygehus | B120: Skema 6.14: Art 4.8 Betalinger til andre regioner | G120: 0
A121: Esbjerg og Grindsted Sygehus | B121: Skema 6.15: Art 7.6 Betalinger fra staten | G121: 0
A122: Esbjerg og Grindsted Sygehus | B122: Skema 6.16: Art 7.7 Betalinger fra kommuner | G122: 0
A123: Esbjerg og Grindsted Sygehus | B123: Skema 6.17: Art 7.8 Betalinger fra andre regioner | G123: 0
A124: Esbjerg og Grindsted Sygehus | B124: Skema 6.18: Betalinger til selvejende, private og udenlandske sygehuse | G124: 0
A125: Esbjerg og Grindsted Sygehus | B125: Skema 6.19: Dækningsafgift/ejendomsskat | C125: 4301 | D125: 4258 | E125: 4190 | F125: 4225 | G125: 43 | H125: 1,0%
A126: Esbjerg og Grindsted Sygehus | B126: Skema 6.20: Forsikringer/erstatninger | C126: 3822 | D126: 3824 | E126: 3806 | F126: 3688 | G126: -2 | H126: -0,1%
A127: Esbjerg og Grindsted Sygehus | B127: Skema 6.21: Vederlagsfri Lab. –ydelser og andre ydelser til praksissektoren | C127: 84672 | D127: 75756 | E127: 68105 | F127: 63689 | G127: 8916 | H127: 11,8%▲ | I127: Vækst i analyser for praksis
A128: Esbjerg og Grindsted Sygehus | B128: Skema 6.22: Patienttransport | C128: 416 | D128: 717 | E128: 786 | F128: 686 | G128: -301 | H128: -42,0%▼ | I128: Færre babylance transporter til OUH
A129: Esbjerg og Grindsted Sygehus | B129: Skema 6.23: Serviceydelser til/fra andre institutioner eller sygehuse udenfor regionen | G129: 0
A130: Esbjerg og Grindsted Sygehus | B130: Skema 6.24: Udgifter til eksternt finansierede forskning | G130: 0
A131: Esbjerg og Grindsted Sygehus | B131: Skema 6.25: Forebyggelse rettet mod praksissektoren og kommuner | G131: 0
A132: Esbjerg og Grindsted Sygehus | B132: Skema 6.26: Praksisreservelæger | G132: 0
A133: Esbjerg og Grindsted Sygehus | B133: Skema 6.27: Præhospital | C133: 4982 | D133: 5063 | E133: 5092 | F133: 4573 | G133: -81 | H133: -1,6%
A134: Esbjerg og Grindsted Sygehus | B134: Skema 6.28: Udgifter til Danske Regioner (Kontigent, MedCom, Fællesproj.) | G134: 0
A135: Esbjerg og Grindsted Sygehus | B135: Skema 6.29: Hospice | G135: =IF(ISERROR(C135- D135)=TRUE,"",C135 - D135) -> 0 | H135: =IF(ISERROR((((C135- D135)/D135)*100)=TRUE),"",IF((((C135- D135)/D135)*100)<-7,FIXED(((C135- D135)/D135)*100, 1,TRUE) &"%" & "▼",IF((((C135- D135)/D135)*100)>7,FIXED(((C135- D135)/D135)*100, 1,TRUE) &"%" &"▲",FIXED(((C135- D135)/D135)*100, 1,TRUE)&"%"))) -> 
A136: Esbjerg og Grindsted Sygehus | B136: Skema 6.30: Konsulenter(Praksis) | C136: 521 | D136: 499 | E136: 553 | F136: 580 | G136: 22 | H136: 4,4%
A137: Esbjerg og Grindsted Sygehus | B137: Skema 6.31: Videnskabsetisk Komité | G137: 0
A138: Esbjerg og Grindsted Sygehus | B138: Skema 6.32: Tolkebistand | C138: 183 | D138: 132 | E138: 182 | F138: 201 | G138: 51 | H138: 38,6%▲ | I138: Stigning tolkeudgifter udenfor tisrummet 8-16,00
A139: Esbjerg og Grindsted Sygehus | B139: Skema 6.33: Dansk Center for Partikelterapi | G139: 0
A140: Esbjerg og Grindsted Sygehus | B140: Skema 6.34: Politisk organisation – overførte udgifter fra funktion 4.10.01, 4.10.02 og 4.10.04 | G140: 0
A141: Esbjerg og Grindsted Sygehus | B141: Skema 6.35: Øvrige udgifter, Region Sjælland | G141: 0
A142: Esbjerg og Grindsted Sygehus | B142: Skema 6.36: Sundhedsydelser ifm. specialsektor | G142: 0
A143: Esbjerg og Grindsted Sygehus | B143: Skema 6.37: Udgifter til primær sundhed fra skema 2 | G143: 0
A144: Esbjerg og Grindsted Sygehus | B144: Skema 6.38: Udgifter til primær sundhed fra skema 3 | G144: 0
A145: Esbjerg og Grindsted Sygehus | B145: Skema 6.39: Særlige udgifter ifm. COVID-19 | C145: 3383 | D145: 5159 | E145: =2368+3004 -> 5372 | F145: 3247 | G145: -1776 | H145: -34,4%▼ | I145: Fald i særlige udgifter ifm Covid
A146: Esbjerg og Grindsted Sygehus | B146: Skema 6.40: Udleveret udstyr/tilbehør ifm. cochlear implantater | G146: 0
A147: Esbjerg og Grindsted Sygehus | B147: Skema 6.41: Luxturna-behandling, Rigshospitalet | G147: 0
A148: Esbjerg og Grindsted Sygehus | B148: Skema 6.42: Udleveret medicin | C148: 68395 | D148: 59859 | E148: 50156 | G148: 8536 | H148: 14,3%▲ | I148: Stigning i udleveret medicin til patienter
A149: Esbjerg og Grindsted Sygehus | B149: Skema 6.43: Udgifter ifm. sundhedsklynger | G149: 0
A150: Esbjerg og Grindsted Sygehus | B150: Skema 6.44: Ukrainske patienter under særlov eller asyl | G150: 0
A151: Esbjerg og Grindsted Sygehus | B151: Skema 6.45: Udgifter ifm. de særlige pladser i psykiatrien | G151: 0
A152: Esbjerg og Grindsted Sygehus | B152: Skema 6.46: Sikringsafdelingen, Region Sjælland | G152: 0
A153: Esbjerg og Grindsted Sygehus | B153: Skema 6.47: Øvrige (Kan kun benyttes efter aftale med Sundhedsdatastyrelsen) | D153: -12309 | G153: 12309 | H153: -100,0%▼
A154: Esbjerg og Grindsted Sygehus | B154: Lukkede poster (må kun bruges af Sundhedsdatastyrelsen) | G154: 0
A155: Esbjerg og Grindsted Sygehus | B155: I alt | C155: =SUMIFS((C7:C154),(A7:A154),A155) -> 175301 | D155: =SUMIFS((D7:D154),(A7:A154),A155) -> 147111 | E155: =SUMIFS((E7:E154),(A7:A154),A155) -> 141611 | F155: =SUMIFS((F7:F154),(A7:A154),A155) -> 84037 | G155: 28190 | H155: 19,2%▲
A156: Kolding og Middelfart Sygehuse | G156: 0
A157: Kolding og Middelfart Sygehuse | B157: Skema 6.1: Center for voldsramte (Bispebjerg) | G157: 0
A158: Kolding og Middelfart Sygehuse | B158: Skema 6.2: Ventilatørbistand i hjemmet, respiratorpatienter | G158: 0
A159: Kolding og Middelfart Sygehuse | B159: Skema 6.3: Blodprøvetagning i eget hjem | C159: 2422.163 | D159: 2422.162526 | E159: 2568.369025 | F159: 2551.373344 | G159: 0.0004739999999 | H159: 0,0%
A160: Kolding og Middelfart Sygehuse | B160: Skema 6.4: Psykinfo + pårørende | G160: 0
A161: Kolding og Middelfart Sygehuse | B161: Skema 6.5: Leveret udstyr til patienter i eget hjem, ilt og sonderemedier | C161: 0 | D161: 1.54795 | E161: 16.85446 | F161: 5.8109 | G161: -1.54795 | H161: -100,0%▼
A162: Kolding og Middelfart Sygehuse | B162: Skema 6.6: Montebello (Nordsjællands Hospitaler) | G162: 0
A163: Kolding og Middelfart Sygehuse | B163: Skema 6.7: Satspulje korrektioner mellem år | G163: 0
A164: Kolding og Middelfart Sygehuse | B164: Skema 6.8: Klinisk farmakologisk rådgivning af praksissektoren | G164: 0
A165: Kolding og Middelfart Sygehuse | B165: Skema 6.9: Tandregulering ifm. operation | G165: 0
A166: Kolding og Middelfart Sygehuse | B166: Skema 6.10: Giftlinjen | G166: 0
A167: Kolding og Middelfart Sygehuse | B167: Skema 6.11: Tjenestemandspensioner | G167: 0
A168: Kolding og Middelfart Sygehuse | B168: Skema 6.12: Art 4.6 Betalinger til staten | G168: 0
A169: Kolding og Middelfart Sygehuse | B169: Skema 6.13: Art 4.7 Betalinger til kommuner | G169: 0
A170: Kolding og Middelfart Sygehuse | B170: Skema 6.14: Art 4.8 Betalinger til andre regioner | C170: 4597.39908 | D170: 3309.852797 | E170: 2241.054893 | F170: 1878.205756 | G170: 1287.546283 | H170: 38,9%▲
A171: Kolding og Middelfart Sygehuse | B171: Skema 6.15: Art 7.6 Betalinger fra staten | G171: 0
A172: Kolding og Middelfart Sygehuse | B172: Skema 6.16: Art 7.7 Betalinger fra kommuner | G172: 0
A173: Kolding og Middelfart Sygehuse | B173: Skema 6.17: Art 7.8 Betalinger fra andre regioner | G173: 0
A174: Kolding og Middelfart Sygehuse | B174: Skema 6.18: Betalinger til selvejende, private og udenlandske sygehuse | G174: 0
A175: Kolding og Middelfart Sygehuse | B175: Skema 6.19: Dækningsafgift/ejendomsskat | D175: 6069.31449 | E175: 6368.35413 | F175: 6300.06881 | G175: -6069.31449 | H175: -100,0%▼
A176: Kolding og Middelfart Sygehuse | B176: Skema 6.20: Forsikringer/erstatninger | C176: 22.694 | D176: 4412.10105 | E176: 3960.06383 | F176: 3780.35972 | G176: -4389.40705 | H176: -99,5%▼
A177: Kolding og Middelfart Sygehuse | B177: Skema 6.21: Vederlagsfri Lab. –ydelser og andre ydelser til praksissektoren | D177: 29458.45 | E177: 29934.8 | F177: 28584.3208 | G177: -29458.45 | H177: -100,0%▼
A178: Kolding og Middelfart Sygehuse | B178: Skema 6.22: Patienttransport | C178: 222.718 | D178: 1081.76722 | E178: 757.71906 | F178: 777.38731 | G178: -859.04922 | H178: -79,4%▼
A179: Kolding og Middelfart Sygehuse | B179: Skema 6.23: Serviceydelser til/fra andre institutioner eller sygehuse udenfor regionen | G179: 0
A180: Kolding og Middelfart Sygehuse | B180: Skema 6.24: Udgifter til eksternt finansierede forskning | G180: 0
A181: Kolding og Middelfart Sygehuse | B181: Skema 6.25: Forebyggelse rettet mod praksissektoren og kommuner | G181: 0
A182: Kolding og Middelfart Sygehuse | B182: Skema 6.26: Praksisreservelæger | G182: 0
A183: Kolding og Middelfart Sygehuse | B183: Skema 6.27: Præhospital | C183: 5352.824 | D183: =3353983.87888/1000 -> 3353.983879 | E183: 5531.35783 | F183: 5637.16 | G183: 1998.840121 | H183: 59,6%▲
A184: Kolding og Middelfart Sygehuse | B184: Skema 6.28: Udgifter til Danske Regioner (Kontigent, MedCom, Fællesproj.) | G184: 0
A185: Kolding og Middelfart Sygehuse | B185: Skema 6.29: Hospice | G185: 0
A186: Kolding og Middelfart Sygehuse | B186: Skema 6.30: Konsulenter(Praksis) | G186: 0
A187: Kolding og Middelfart Sygehuse | B187: Skema 6.31: Videnskabsetisk Komité | G187: 0
A188: Kolding og Middelfart Sygehuse | B188: Skema 6.32: Tolkebistand | C188: 441.018 | D188: 393.02111 | E188: 409.89429 | F188: 550.94418 | G188: 47.99689 | H188: 12,2%▲
A189: Kolding og Middelfart Sygehuse | B189: Skema 6.33: Dansk Center for Partikelterapi | G189: 0
A190: Kolding og Middelfart Sygehuse | B190: Skema 6.34: Politisk organisation – overførte udgifter fra funktion 4.10.01, 4.10.02 og 4.10.04 | G190: 0
A191: Kolding og Middelfart Sygehuse | B191: Skema 6.35: Øvrige udgifter, Region Sjælland | G191: 0
A192: Kolding og Middelfart Sygehuse | B192: Skema 6.36: Sundhedsydelser ifm. specialsektor | G192: 0
A193: Kolding og Middelfart Sygehuse | B193: Skema 6.37: Udgifter til primær sundhed fra skema 2 | G193: 0
A194: Kolding og Middelfart Sygehuse | B194: Skema 6.38: Udgifter til primær sundhed fra skema 3 | G194: 0
A195: Kolding og Middelfart Sygehuse | B195: Skema 6.39: Særlige udgifter ifm. COVID-19 | D195: =(4710+3323)/2 -> 4016.5 | E195: 5143 | F195: 1090.783 | G195: -4016.5 | H195: -100,0%▼
A196: Kolding og Middelfart Sygehuse | B196: Skema 6.40: Udleveret udstyr/tilbehør ifm. cochlear implantater | G196: 0
A197: Kolding og Middelfart Sygehuse | B197: Skema 6.41: Luxturna-behandling, Rigshospitalet | G197: 0
A198: Kolding og Middelfart Sygehuse | B198: Skema 6.42: Udleveret medicin | C198: 16499.024 | D198: 32247.954 | E198: 35540.355 | G198: -15748.93 | H198: -48,8%▼
A199: Kolding og Middelfart Sygehuse | B199: Skema 6.43: Udgifter ifm. sundhedsklynger | G199: =IF(ISERROR(C199- D199)=TRUE,"",C199 - D199) -> 0 | H199: =IF(ISERROR((((C199- D199)/D199)*100)=TRUE),"",IF((((C199- D199)/D199)*100)<-7,FIXED(((C199- D199)/D199)*100, 1,TRUE) &"%" & "▼",IF((((C199- D199)/D199)*100)>7,FIXED(((C199- D199)/D199)*100, 1,TRUE) &"%" &"▲",FIXED(((C199- D199)/D199)*100, 1,TRUE)&"%"))) -> 
A200: Kolding og Middelfart Sygehuse | B200: Skema 6.44: Ukrainske patienter under særlov eller asyl | G200: 0
A201: Kolding og Middelfart Sygehuse | B201: Skema 6.45: Udgifter ifm. de særlige pladser i psykiatrien | G201: 0
A202: Kolding og Middelfart Sygehuse | B202: Skema 6.46: Sikringsafdelingen, Region Sjælland | G202: 0
... 203 more rows

Sheet Skema 7
A1: Region Syddanmark, somatiske sygehuse.
B2: Skema 7: Vederlagsfrie ydelser mellem sygehusene. (1.000 kr.)
A5: Sygehus | B5: 2023 | D5: 2023 | E5: 2022 | G5: 2022 | H5: 2021 | J5: 2021 | K5: 2020 | M5: 2020
B6: Leverede | C6: Modtagne | D6: Lev. - Mod. | E6: Leverede | F6: Modtagne | G6: Lev. - Mod. | H6: Leverede | I6: Modtagne | J6: Lev. - Mod. | K6: Leverede | L6: Modtagne | M6: Lev. - Mod.
A7: Odense Universitetshospital/Svendborg | B7: 14491 | C7: 4036 | D7: =$B$7-$C$7 -> 10455 | E7: =8041+7108 -> 15149 | F7: =1850+2514 -> 4364 | G7: =$E$7-$F$7 -> 10785 | H7: 15027 | I7: 4428 | J7: =$H$7-$I$7 -> 10599 | K7: 14513 | L7: 4123 | M7: =$K$7-$L$7 -> 10390
A8: Sygehus Sønderjylland | B8: 3622 | C8: 5 | D8: =$B$8-$C$8 -> 3617 | E8: =2514+405+509 -> 3428 | F8: 15 | G8: =$E$8-$F$8 -> 3413 | H8: 3458 | I8: 43 | J8: =$H$8-$I$8 -> 3415 | K8: 3195 | L8: 42 | M8: =$K$8-$L$8 -> 3153
A9: Esbjerg og Grindsted Sygehus | B9: 4802 | D9: =$B$9-$C$9 -> 4802 | E9: 4613 | F9: 0 | G9: =$E$9-$F$9 -> 4613 | H9: 4644 | J9: =$H$9-$I$9 -> 4644 | K9: 4607 | M9: =$K$9-$L$9 -> 4607
A10: Kolding og Middelfart Sygehuse | D10: =$B$10-$C$10 -> 0 | G10: =$E$10-$F$10 -> 0 | J10: =$H$10-$I$10 -> 0 | L10: 6200 | M10: =$K$10-$L$10 -> -6200
A11: Vejle Sygehus | B11: 5146 | C11: 7035 | D11: =$B$11-$C$11 -> -1889 | E11: =3783+1797 -> 5580 | F11: =7108+405+27 -> 7540 | G11: =$E$11-$F$11 -> -1960 | H11: 5581 | I11: 7556 | J11: =$H$11-$I$11 -> -1975 | K11: 11688 | L11: 7197 | M11: =$K$11-$L$11 -> 4491
A12: Friklinikken i Grindsted | D12: =$B$12-$C$12 -> 0 | G12: =$E$12-$F$12 -> 0 | J12: =$H$12-$I$12 -> 0 | M12: =$K$12-$L$12 -> 0
A13: Øvrige i Region Syddanmark | D13: =$B$13-$C$13 -> 0 | G13: =$E$13-$F$13 -> 0 | J13: =$H$13-$I$13 -> 0 | M13: =$K$13-$L$13 -> 0
A14: Ikke fordelte udgifter Region Syddanmark, somatik | D14: =$B$14-$C$14 -> 0 | G14: =$E$14-$F$14 -> 0 | J14: =$H$14-$I$14 -> 0 | M14: =$K$14-$L$14 -> 0
A15: I alt | B15: =SUM(B7:B14) -> 28061 | C15: =SUM(C7:C14) -> 11076 | D15: =SUM(D7:D14) -> 16985 | E15: =SUM(E7:E14) -> 28770 | F15: 11919 | G15: 16851 | H15: 28710 | I15: 12027 | J15: 16683 | K15: =SUM(K7:K14) -> 34003 | L15: 17562 | M15: 16441
A17: NB: Afstem med psykiatrien | E17: =E15-F15 -> 16851

Sheet Rapport
B2: Skema 1: Udgifter og indtægter på sygehusene/enhederne, eksklusiv omkostningssted 0001, Fælleskonto. (1.000 kr.)
C3: 2023 | D3: 2022 | E3: 2021 | F3: 2020
B4: Hovedart 1: Lønninger | C4: 11413573.08 | D4: 11315727.38 | E4: 10933527.72 | F4: 10317685.11
B5: Hovedart 2: Varekøb | C5: 4286318.092 | D5: 4373098.061 | E5: 4236129.309 | F5: 4380847.472
B6: Hovedart 4: Tjenesteydelser m.v. | C6: 1477437.762 | D6: 1005374.682 | E6: 634743.4549 | F6: 958513.2769
B7: Hovedart 5: Tilskud og overførsler | C7: -81452.481 | D7: 1 | E7: 0 | F7: 0
B8: Hovedart 6: Finansudgifter | C8: 0 | D8: 0 | E8: 0 | F8: 0
B9: Hovedart 7: Indtægter | C9: -667934.855 | D9: -703830.9596 | E9: -690372.1293 | F9: -660385.9004
B10: Hovedart 8: Finansindtægter | C10: 0 | D10: -686.3248429 | E10: -1502.02339 | F10: -2683.10273
B11: Hovedart 9: Interne udgifter og indtægter | C11: 0 | D11: 0 | E11: 0 | F11: 0
B12: I alt | C12: 16427941.6 | D12: 15989683.84 | E12: 15112526.33 | F12: 14993976.86
B14: Skema 2: Fællesudgifter og -indtægter vedrørende sygehusene. (1.000 kr.)
C15: 2023 | D15: 2022 | E15: 2021 | F15: 2020
B16: Hovedart 1: Lønninger | C16: 594850 | D16: 708712 | E16: 659607 | F16: 627653
B17: Hovedart 2: Varekøb | C17: 159379 | D17: 279379 | E17: 171141 | F17: 339505
B18: Hovedart 4: Tjenesteydelser m.v. | C18: 3198554 | D18: 3915329 | E18: 3898075 | F18: 3382908
B19: Hovedart 5: Tilskud og overførsler | C19: 15713 | D19: 13445 | E19: 15967 | F19: 15972
B20: Hovedart 6: Finansudgifter | C20: 0 | D20: 0 | E20: 0 | F20: 0
B21: Hovedart 7: Indtægter | C21: -772305 | D21: -870134 | E21: -719327 | F21: -817621
B22: Hovedart 8: Finansindtægter | C22: -94101 | D22: -523502 | E22: -444120 | F22: -46600
B23: Hovedart 9: Interne udgifter og indtægter | C23: 0 | D23: 0 | E23: 0 | F23: 0
B24: I alt | C24: 3102090 | D24: 3523229 | E24: 3581343 | F24: 3501817
B26: Skema 3:Regionale fællesudgifter og -indtægter. (1.000 kr.)
C27: 2023 | D27: 2022 | E27: 2021 | F27: 2020
B28: 1.70.50: Andel af fællesudgifter | C28: 429108 | D28: 433187 | E28: 411797 | F28: 468435
B29: 1.60.40: Andel af central administration af sundhed (til og med 2019) | C29: 0 | D29: 0 | E29: 0 | F29: 0
B30: 1.60.41: Andel af øvrige udgifter og indtægter | C30: 26973 | D30: 33929 | E30: 33565 | F30: 80462
B31: 1.50.33: Andel af central administration af sundhed (ekskl. psykiatri) | C31: 79366 | D31: 76112 | E31: 70722 | F31: 65021
B32: 1.50.35: Administration af det psykiatriske område (kun central del) | C32: 0 | D32: 0 | E32: 0 | F32: 21633
B33: I alt | C33: 535447 | D33: 543228 | E33: 516084 | F33: 635551
B35: Skema 4: Udgifter og indtægter til og fra psykiatriske afdelinger konteret på somatiske sygehuse. (1.000 kr.)
C36: 2023 | D36: 2022 | E36: 2021 | F36: 2020
B37: Korrektion | C37: 0 | D37: 0 | E37: 0 | F37: 0
B38: Lønudg. på psyk. afd.,somatiske sygehuse | C38: 0 | D38: 0 | E38: 0 | F38: 0
B39: Øvrige udg. til psyk. afd.,somatiske sygehuse | C39: 0 | D39: 0 | E39: 0 | F39: 0
B40: I alt | C40: 0 | D40: 0 | E40: 0 | F40: 0
B42: Skema 5: Leasing- og huslejeudgifter. (1.000 kr.)
C43: 2023 | D43: 2022 | E43: 2021 | F43: 2020
B44: Andre udgifter | C44: 0 | D44: 0 | E44: 0 | F44: 0
B45: Leasing- og lejeudgifter | C45: 276842 | D45: 307808.7704 | E45: 296229.1475 | F45: 414364.895
B46: Huslejeudgifter | C46: 16687 | D46: 24703.14082 | E46: 21298.69804 | F46: 19759.521
B47: I alt | C47: 293529 | D47: 332511.9112 | E47: 317527.8456 | F47: 434124.416
B49: Skema 6: Udgifter til andet end patientbehandling. (1.000 kr.)
C50: 2023 | D50: 2022 | E50: 2021 | F50: 2020
B51: Skema 6.1: Center for voldsramte (Bispebjerg) | C51: 0 | D51: 0 | E51: 0 | F51: 0
B52: Skema 6.2: Ventilatørbistand i hjemmet, respiratorpatienter | C52: 234550.673 | D52: 256634.954 | E52: 258811.615 | F52: 270115
B53: Skema 6.3: Blodprøvetagning i eget hjem | C53: 4720.300522 | D53: 4720.300048 | E53: 4046.632023 | F53: 4019.854225
B54: Skema 6.4: Psykinfo + pårørende | C54: 0 | D54: 0 | E54: 0 | F54: 0
B55: Skema 6.5: Leveret udstyr til patienter i eget hjem, ilt og sonderemedier | C55: 41730.289 | D55: 31055.94926 | E55: 30884.29223 | F55: 28168.09667
B56: Skema 6.6: Montebello (Nordsjællands Hospitaler) | C56: 0 | D56: 0 | E56: 0 | F56: 0
B57: Skema 6.7: Satspulje korrektioner mellem år | C57: 0 | D57: 0 | E57: 0 | F57: 0
B58: Skema 6.8: Klinisk farmakologisk rådgivning af praksissektoren | C58: 3600.369 | D58: 3488.224 | E58: 2954.728 | F58: 2463
B59: Skema 6.9: Tandregulering ifm. operation | C59: 0 | D59: 0 | E59: 0 | F59: 0
B60: Skema 6.10: Giftlinjen | C60: 0 | D60: 0 | E60: 0 | F60: 0
B61: Skema 6.11: Tjenestemandspensioner | C61: 266948 | D61: 575191 | E61: 479401 | F61: 330146
B62: Skema 6.12: Art 4.6 Betalinger til staten | C62: 0 | D62: 0 | E62: 0 | F62: 0
B63: Skema 6.13: Art 4.7 Betalinger til kommuner | C63: 3832 | D63: 3788 | E63: 3847 | F63: 8023
B64: Skema 6.14: Art 4.8 Betalinger til andre regioner | C64: 317339.3397 | D64: 184269.5095 | E64: 268063.491 | F64: 189445.531
B65: Skema 6.15: Art 7.6 Betalinger fra staten | C65: 230 | D65: 0 | E65: -1920 | F65: 49
B66: Skema 6.16: Art 7.7 Betalinger fra kommuner | C66: -21631 | D66: -21099 | E66: -29423 | F66: -18829
B67: Skema 6.17: Art 7.8 Betalinger fra andre regioner | C67: -251 | D67: -6026 | E67: -6150 | F67: -13565
B68: Skema 6.18: Betalinger til selvejende, private og udenlandske sygehuse | C68: 346502 | D68: 152282 | E68: 126349 | F68: 133177
B69: Skema 6.19: Dækningsafgift/ejendomsskat | C69: 25829.348 | D69: 37096.44945 | E69: 36351.0032 | F69: 35680.27673
B70: Skema 6.20: Forsikringer/erstatninger | C70: 295656.743 | D70: 308842.3584 | E70: 286701.7973 | F70: 294323.9795
B71: Skema 6.21: Vederlagsfri Lab. –ydelser og andre ydelser til praksissektoren | C71: 282375.149 | D71: 344645.957 | E71: 335176.332 | F71: 310697.6829
B72: Skema 6.22: Patienttransport | C72: 900073.133 | D72: 865900.8966 | E72: 828592.5002 | F72: 824630.2166
B73: Skema 6.23: Serviceydelser til/fra andre institutioner eller sygehuse udenfor regionen | C73: 0 | D73: 0 | E73: 1782.340253 | F73: 1770.545963
B74: Skema 6.24: Udgifter til eksternt finansierede forskning | C74: 79713.092 | D74: 80991.672 | E74: 68231.315 | F74: 58132
B75: Skema 6.25: Forebyggelse rettet mod praksissektoren og kommuner | C75: 0 | D75: 0 | E75: 0 | F75: 0
B76: Skema 6.26: Praksisreservelæger | C76: 67990 | D76: 67368 | E76: 66502 | F76: 63365
B77: Skema 6.27: Præhospital | C77: 82102.562 | D77: 82625.42288 | E77: 82223.73083 | F77: 80819.16
B78: Skema 6.28: Udgifter til Danske Regioner (Kontigent, MedCom, Fællesproj.) | C78: 64422 | D78: 61136 | E78: 62360 | F78: 58930
B79: Skema 6.29: Hospice | C79: 101656 | D79: 95559 | E79: 93476 | F79: 93360
B80: Skema 6.30: Konsulenter(Praksis) | C80: 2284.94 | D80: 2236.343 | E80: 2616.967 | F80: 4218.92583
B81: Skema 6.31: Videnskabsetisk Komité | C81: 2652 | D81: 2569 | E81: 2274 | F81: 2240
B82: Skema 6.32: Tolkebistand | C82: 26046.498 | D82: 25016.41501 | E82: 13815.51261 | F82: 18409.69427
B83: Skema 6.33: Dansk Center for Partikelterapi | C83: 0 | D83: 0 | E83: 0 | F83: 0
B84: Skema 6.34: Politisk organisation – overførte udgifter fra funktion 4.10.01, 4.10.02 og 4.10.04 | C84: 15249 | D84: 15105 | E84: 14956 | F84: 14064
B85: Skema 6.35: Øvrige udgifter, Region Sjælland | C85: 0 | D85: 0 | E85: 0 | F85: 0
B86: Skema 6.36: Sundhedsydelser ifm. specialsektor | C86: 0 | D86: 0 | E86: 0 | F86: 0
B87: Skema 6.37: Udgifter til primær sundhed fra skema 2 | C87: 0 | D87: 0 | E87: 0 | F87: 0
B88: Skema 6.38: Udgifter til primær sundhed fra skema 3 | C88: 0 | D88: 0 | E88: 0 | F88: 101991
B89: Skema 6.39: Særlige udgifter ifm. COVID-19 | C89: 12508 | D89: 466931.915 | E89: 596276.425 | F89: 631930
B90: Skema 6.40: Udleveret udstyr/tilbehør ifm. cochlear implantater | C90: 3108.438 | D90: 2933.815 | E90: 2904.362 | F90: 0
B91: Skema 6.41: Luxturna-behandling, Rigshospitalet | C91: 0 | D91: 0 | E91: 0 | F91: 0
B92: Skema 6.42: Udleveret medicin | C92: 424921.507 | D92: 440413.82 | E92: 489216.632 | F92: 0
B93: Skema 6.43: Udgifter ifm. sundhedsklynger | C93: 6187 | D93: 0 | E93: 0 | F93: 0
B94: Skema 6.44: Ukrainske patienter under særlov eller asyl | C94: 0 | D94: 0 | E94: 0 | F94: 0
B95: Skema 6.45: Udgifter ifm. de særlige pladser i psykiatrien | C95: 0 | D95: 0 | E95: 0 | F95: 0
B96: Skema 6.46: Sikringsafdelingen, Region Sjælland | C96: 0 | D96: 0 | E96: 0 | F96: 0
B97: Skema 6.47: Øvrige (Kan kun benyttes efter aftale med Sundhedsdatastyrelsen) | C97: -21474.269 | D97: -30094.999 | E97: 0 | F97: 0
B98: Lukkede poster (må kun bruges af Sundhedsdatastyrelsen) | C98: 0 | D98: 0 | E98: 0 | F98: 0
B99: I alt | C99: 3568872.112 | D99: 4053582.002 | E99: 4120321.676 | F99: 3527774.964

Sheet Rapport SGH
A1: 2023 | B1: Skema 1 | C1: Skema 2 | D1: Skema 3 | E1: Skema 4 | F1: Skema 5 | G1: Skema 6 | H1: Skema 7 | I1: I alt
A2: Odense Universitetshospital/Svendborg | B2: 8093469.76 | C2: 182344 | D2: 189994 | E2: 0 | F2: 16795 | G2: 503971.999 | H2: 10455 | I2: =SUM(B2:D2)-SUM(E2:H2) -> 7934585.761
A3: Sygehus Sønderjylland | B3: 2271393 | C3: 47062 | D3: 49036 | E3: 0 | F3: 6137 | G3: 149490 | H3: 3617 | I3: =SUM(B3:D3)-SUM(E3:H3) -> 2208247
A4: Esbjerg og Grindsted Sygehus | B4: 2167531 | C4: 46830 | D4: 48796 | E4: 0 | F4: 2235 | G4: 175301 | H4: 4802 | I4: 2080819
A5: Kolding og Middelfart Sygehuse | B5: 1760474.418 | C5: 35117 | D5: 36591 | E5: 0 | F5: 949 | G5: 29557.84008 | H5: 0 | I5: 1801675.578
A6: Vejle Sygehus | B6: 2068174.423 | C6: 49988 | D6: 50118 | E6: 0 | F6: 1243 | G6: 78917.27319 | H6: -1889 | I6: 2090009.15
A7: Friklinikken i Grindsted | B7: 66899 | C7: 1889 | D7: 1968 | E7: 0 | F7: 0 | G7: 0 | H7: 0 | I7: 70756
A8: Øvrige i Region Syddanmark | B8: 0 | C8: 0 | D8: 0 | E8: 0 | F8: 0 | G8: 0 | H8: 0 | I8: 0
A9: Ikke fordelte udgifter og indtægter | B9: 0 | C9: 2738860 | D9: 158944 | E9: 0 | F9: 266170 | G9: 2631634 | H9: 0 | I9: 0
A11: 2022
A12: Odense Universitetshospital/Svendborg | B12: 7909282.103 | C12: 197920 | D12: 186270 | E12: 0 | F12: 14897 | G12: 493516.785 | H12: 10785 | I12: =SUM(B12:D12)-SUM(E12:H12) -> 7774273.318
A13: Sygehus Sønderjylland | B13: 2170652 | C13: 51847 | D13: 48795 | E13: 0 | F13: 7476 | G13: 154517 | H13: 3413 | I13: 2105888
A14: Esbjerg og Grindsted Sygehus | B14: 2100521 | C14: 50471 | D14: 47500 | E14: 0 | F14: 2257 | G14: 147111 | H14: 4613 | I14: 2044511
A15: Kolding og Middelfart Sygehuse | B15: 1745280.982 | C15: 38140 | D15: 35896 | E15: 0 | F15: 7026.542625 | G15: 86766.65502 | H15: 0 | I15: 1725523.784
A16: Vejle Sygehus | B16: 2000032.751 | C16: 52240 | D16: 49165 | E16: 0 | F16: 2070.368605 | G16: 166130.5621 | H16: -1960 | I16: 1935196.821
A17: Friklinikken i Grindsted | B17: 63915 | C17: 2004 | D17: 1885 | E17: 0 | F17: 0 | G17: 0 | H17: 0 | I17: 67804
A18: Øvrige i Region Syddanmark | B18: 0 | C18: 0 | D18: 0 | E18: 0 | F18: 0 | G18: 0 | H18: 0 | I18: 0
A19: Ikke fordelte udgifter og indtægter | B19: 0 | C19: 3130607 | D19: 173717 | E19: 0 | F19: 298785 | G19: 3005540 | H19: 0 | I19: -1

Sheet Afstemning af ikke fordelte
A1: Afstemning af Ikke fordelte indtægter- og udgifter
A2: 1.000 kr. | B2: 2023
A3: Skema 1 | B3: 0
A4: Skema 2 | B4: 2738860
A5: Skema 3 | B5: 158944
A6: Skema 4 | B6: 0
A7: Skema 5 | B7: 266170
A8: Skema 6 | B8: 2631634
A9: 1+2+3-4-5-6 | B9: =+B3+B4+B5-B6-B7-B8 -> 0

Sheet Afstemning øvrige region
A1: Afstemning af Øvrige i Region Syddanmark
A2: 1.000 kr. | B2: 2023
A3: Skema 1 | B3: 0
A4: Skema 2 | B4: 0
A5: Skema 3 | B5: 0
A6: Skema 4 | B6: 0
A7: Skema 5 | B7: 0
A8: Skema 6 | B8: 0
A9: 1+2+3-4-5-6 | B9: =+B3+B4+B5-B6-B7-B8 -> 0
